Workbook

Sheet Einteilung
B2: U12 - LM
B4: Gruppe I
B5: Team | D5: Trikotfarbe | F5: Turnierbeginn | G5: 14:15:00 | H5: Uhr
B6: UFC Rohrbach-Berg | E6: I | F6: Spieldauer | G6: 00:10:00 | H6: min
B7: U. Pichling | E7: I | F7: Pause | G7: 00:02:00 | H7: min
B8: U. Altenfelden | E8: I | F8: Beginn Playoff | G8: ='Play-off'!K6 -> 17:55:00 | H8: Uhr
B9: U. Walding/Rottenegg | E9: I | F9: Turnierende | G9: ='Play-off'!R28+Einteilung!G6 -> 20:30:00 | H9: Uhr | K9: Pause Vorrunde | L9: 00:02:00 | M9: min
B11: Gruppe II
B12: Team | D12: Trikotfarbe
B13: U. St. Peter/Wimberg | E13: II
B14: U. Gampern | E14: II
B15: UFC Aigen/Schlägl | E15: II
B16: U. Lembach | E16: II
B18: Gruppe III
B19: Team | D19: Trikotfarbe
B20: U. St. Martin/Mkr. | E20: III
B21: SPG Putzleinsdorf/Hofkirchen | E21: III
B22: SPG Julbach/Ulrichsb./Klaffer | E22: III
B23: U. Ried/Riedmark | E23: III

Sheet Vorrunde Gruppenspiele
B2: Spielplan Vorrunde U12 | AP2: U12 | BY2: Berechnung für jede Gruppe inkl. direktes Duell | CC2: Berechnung für Gruppenvergleich Gruppe 1-3
B4: GRUPPE I | M4: Rd. | N4: Zeit | O4: Ergebnisse GRUPPE I | AP4: I | AQ4: Sieger | AR4: Verlierer | AS4: Remis | AT4: Remis | AU4: HT | AV4: Team | AW4: Spiele | AX4: S | AY4: U | AZ4: N | BA4: + | BB4: - | BC4: Tordiff. | BD4: Punkte | BE4: Berechnung | BF4: Rang | BG4: Hilfswert | BH4: Berechnung NEU | BI4: Rang | BK4: Team | BL4: Spiele | BM4: S | BN4: U | BO4: N | BP4: + | BQ4: - | BR4: Tordiff. | BS4: Punkte | BT4: Berechnung | BU4: Rang | BY4: 1 | BZ4: Gr. | CA4: Berechnungs- punkte | CC4: 1 | CD4: Gr. | CE4: Berechnungs- punkte
B5: Rg. | C5: Team | D5: Sp. | E5: S | F5: U | G5: N | H5: + | I5: - | J5: Tord. | K5: Pkt. | M5: 1 | N5: =Einteilung!G5 -> 14:15:00 | O5: =AV5 -> UFC Rohrbach-Berg | P5: =AV6 -> U. Pichling | Q5: 3 | R5: 0 | S5: I | T5: =Einteilung!B$2 -> U12 - LM | AQ5: =IF(AND(Q5="",R5=""),"",IF(Q5=R5,"",IF(Q5>R5,O5,P5))) -> UFC Rohrbach-Berg | AR5: =IF(AND(Q5="",R5=""),"",IF(Q5=R5,"",IF(Q5>R5,P5,O5))) -> U. Pichling | AS5: =IF(AND(Q5="",R5=""),"",IF(Q5=R5,O5,"")) ->  | AT5: =IF(AND(Q5="",R5=""),"",IF(Q5=R5,P5,"")) ->  | AU5: =IF(ISERROR(IF(VLOOKUP(O5,$AV$5:$BI$8,9,0)=VLOOKUP(P5,$AV$5:$BI$8,9,0),IF(Q5>R5,1,IF(Q5=R5,0,-1)),0)),0,IF(VLOOKUP(O5,$AV$5:$BI$8,9,0)=VLOOKUP(P5,$AV$5:$BI$8,9,0),IF(Q5>R5,1,IF(Q5=R5,0,-1)),0)) -> 0 | AV5: =Einteilung!B6 -> UFC Rohrbach-Berg | AW5: =SUM(AX5:AZ5) -> 3 | AX5: =COUNTIF($AQ$5:$AQ$10,$AV5) -> 3 | AY5: =COUNTIF($AS$5:$AS$10,$AV5)+COUNTIF($AT$5:$AT$10,$AV5) -> 0 | AZ5: =COUNTIF($AR$5:$AR$10,$AV5) -> 0 | BA5: =SUM((O$5:O$10=AV5)*(Q$5:Q$10))+SUM((P$5:P$10=AV5)*(R$5:R$10)) -> 12 | BB5: =SUM((O$5:O$10=AV5)*(R$5:R$10))+SUM((P$5:P$10=AV5)*(Q$5:Q$10)) -> 0 | BC5: =BA5-BB5 -> 12 | BD5: =3*AX5+1*AY5 -> 9 | BE5: =BD5*1000000+BC5*1000+BA5*10 -> 9012120 | BG5: =SUMIF(O:O,AV5,AU:AU) -> 0 | BH5: =BD5*1000000+BC5*1000+BA5*10-AW5/1000+BG5*100000 -> 9012119.997 | BI5: =RANK(BH5,BH$5:BH$8,0) -> 1 | BK5: =AV$5 -> UFC Rohrbach-Berg | BL5: 3 | BM5: 3 | BN5: 0 | BO5: 0 | BP5: 12 | BQ5: 0 | BR5: 12 | BS5: 9 | BT5: =BH$5 -> 9012119.997 | BU5: =RANK(BT5,BT$5:BT$8,0) -> 1 | BY5: =BK$5 -> UFC Rohrbach-Berg | BZ5: =VLOOKUP(BY5,Einteilung!$B:$E,4,FALSE) -> I | CA5: =BT$5 -> 9012119.997 | CC5: =BY$5 -> UFC Rohrbach-Berg | CD5: =BZ$5 -> I | CE5: =VLOOKUP(CC5,AV:BI,10,FALSE) -> 9012120
B6: =RANK(BT5,BT$5:BT$10,0) -> 1 | C6: =IF(SUM(D$6:D$11)=0,Einteilung!B6,BK5) -> UFC Rohrbach-Berg | D6: =BL5 -> 3 | E6: 3 | F6: 0 | G6: 0 | H6: 12 | I6: 0 | J6: 12 | K6: 9 | M6: 2 | N6: =N5+Einteilung!G$6+Einteilung!G$7 -> 14:27:00 | O6: =AV8 -> U. Walding/Rottenegg | P6: =AV7 -> U. Altenfelden | Q6: 4 | R6: 0 | S6: I | T6: =Einteilung!B$2 -> U12 - LM | AQ6: U. Walding/Rottenegg | AR6: U. Altenfelden | AU6: =IF(ISERROR(IF(VLOOKUP(O6,$AV$5:$BI$8,9,0)=VLOOKUP(P6,$AV$5:$BI$8,9,0),IF(Q6>R6,1,IF(Q6=R6,0,-1)),0)),0,IF(VLOOKUP(O6,$AV$5:$BI$8,9,0)=VLOOKUP(P6,$AV$5:$BI$8,9,0),IF(Q6>R6,1,IF(Q6=R6,0,-1)),0)) -> 0 | AV6: =Einteilung!B7 -> U. Pichling | AW6: =SUM(AX6:AZ6) -> 3 | AX6: =COUNTIF($AQ$5:$AQ$10,$AV6) -> 1 | AY6: =COUNTIF($AS$5:$AS$10,$AV6)+COUNTIF($AT$5:$AT$10,$AV6) -> 0 | AZ6: =COUNTIF($AR$5:$AR$10,$AV6) -> 2 | BA6: =SUM((O$5:O$10=AV6)*(Q$5:Q$10))+SUM((P$5:P$10=AV6)*(R$5:R$10)) -> 4 | BB6: =SUM((O$5:O$10=AV6)*(R$5:R$10))+SUM((P$5:P$10=AV6)*(Q$5:Q$10)) -> 6 | BC6: =BA6-BB6 -> -2 | BD6: =3*AX6+1*AY6 -> 3 | BE6: =BD6*1000000+BC6*1000+BA6*10 -> 2998040 | BG6: =SUMIF(O:O,AV6,AU:AU) -> 0 | BH6: =BD6*1000000+BC6*1000+BA6*10-AW6/1000+BG6*100000 -> 2998039.997 | BI6: =RANK(BH6,BH$5:BH$8,0) -> 3 | BK6: =AV$8 -> U. Walding/Rottenegg | BL6: 3 | BM6: 2 | BN6: 0 | BO6: 1 | BP6: 7 | BQ6: 4 | BR6: 3 | BS6: 6 | BT6: =BH$8 -> 6003069.997 | BU6: =RANK(BT6,BT$5:BT$8,0) -> 2 | BY6: =BK$21 -> SPG Julbach/Ulrichsb./Klaffer | BZ6: =VLOOKUP(BY6,Einteilung!$B:$E,4,FALSE) -> III | CA6: =BT$21 -> 7006069.997 | CC6: =BY$6 -> SPG Julbach/Ulrichsb./Klaffer | CD6: =BZ$6 -> III | CE6: =VLOOKUP(CC6,AV:BI,10,FALSE) -> 7006070
B7: =RANK(BT6,BT$5:BT$10,0) -> 2 | C7: =IF(SUM(D$6:D$11)=0,Einteilung!B7,BK6) -> U. Walding/Rottenegg | D7: 3 | E7: 2 | F7: 0 | G7: 1 | H7: 7 | I7: 4 | J7: 3 | K7: 6 | M7: 7 | N7: =N22+Einteilung!G$6+Einteilung!G$7 -> 15:27:00 | O7: =AV7 -> U. Altenfelden | P7: =AV5 -> UFC Rohrbach-Berg | Q7: 0 | R7: 7 | S7: I | T7: =Einteilung!B$2 -> U12 - LM | AQ7: UFC Rohrbach-Berg | AR7: U. Altenfelden | AU7: 0 | AV7: =Einteilung!B8 -> U. Altenfelden | AW7: 3 | AX7: 0 | AY7: 0 | AZ7: 3 | BA7: =SUM((O$5:O$10=AV7)*(Q$5:Q$10))+SUM((P$5:P$10=AV7)*(R$5:R$10)) -> 0 | BB7: =SUM((O$5:O$10=AV7)*(R$5:R$10))+SUM((P$5:P$10=AV7)*(Q$5:Q$10)) -> 13 | BC7: -13 | BD7: 0 | BE7: -13000 | BG7: =SUMIF(O:O,AV7,AU:AU) -> 0 | BH7: -13000.003 | BI7: 4 | BK7: =AV$6 -> U. Pichling | BL7: 3 | BM7: 1 | BN7: 0 | BO7: 2 | BP7: 4 | BQ7: 6 | BR7: -2 | BS7: 3 | BT7: =BH$6 -> 2998039.997 | BU7: =RANK(BT7,BT$5:BT$8,0) -> 3 | BY7: =BK$13 -> U. St. Peter/Wimberg | BZ7: =VLOOKUP(BY7,Einteilung!$B:$E,4,FALSE) -> II | CA7: =BT$13 -> 7005059.997 | CC7: =BY$7 -> U. St. Peter/Wimberg | CD7: =BZ$7 -> II | CE7: =VLOOKUP(CC7,AV:BI,10,FALSE) -> 7005060
B8: =RANK(BT7,BT$5:BT$10,0) -> 3 | C8: =IF(SUM(D$6:D$11)=0,Einteilung!B8,BK7) -> U. Pichling | D8: 3 | E8: 1 | F8: 0 | G8: 2 | H8: 4 | I8: 6 | J8: -2 | K8: 3 | M8: 8 | N8: =N7+Einteilung!G$6+Einteilung!G$7 -> 15:39:00 | O8: =AV8 -> U. Walding/Rottenegg | P8: =AV6 -> U. Pichling | Q8: 3 | R8: 2 | S8: I | T8: =Einteilung!B$2 -> U12 - LM | AQ8: U. Walding/Rottenegg | AR8: U. Pichling | AU8: 0 | AV8: =Einteilung!B9 -> U. Walding/Rottenegg | AW8: 3 | AX8: 2 | AY8: 0 | AZ8: 1 | BA8: =SUM((O$5:O$10=AV8)*(Q$5:Q$10))+SUM((P$5:P$10=AV8)*(R$5:R$10)) -> 7 | BB8: =SUM((O$5:O$10=AV8)*(R$5:R$10))+SUM((P$5:P$10=AV8)*(Q$5:Q$10)) -> 4 | BC8: 3 | BD8: 6 | BE8: 6003070 | BG8: =SUMIF(O:O,AV8,AU:AU) -> 0 | BH8: 6003069.997 | BI8: 2 | BK8: =AV$7 -> U. Altenfelden | BL8: 3 | BM8: 0 | BN8: 0 | BO8: 3 | BP8: 0 | BQ8: 13 | BR8: -13 | BS8: 0 | BT8: =BH$7 -> -13000.003 | BU8: =RANK(BT8,BT$5:BT$8,0) -> 4
B9: =RANK(BT8,BT$5:BT$10,0) -> 4 | C9: =IF(SUM(D$6:D$11)=0,Einteilung!B9,BK8) -> U. Altenfelden | D9: 3 | E9: 0 | F9: 0 | G9: 3 | H9: 0 | I9: 13 | J9: -13 | K9: 0 | M9: 13 | N9: =N24+Einteilung!G$6+Einteilung!G$7 -> 16:39:00 | O9: =AV5 -> UFC Rohrbach-Berg | P9: =AV8 -> U. Walding/Rottenegg | Q9: 2 | R9: 0 | S9: I | T9: =Einteilung!B$2 -> U12 - LM | AQ9: UFC Rohrbach-Berg | AR9: U. Walding/Rottenegg | AU9: 0 | BY9: 2 | BZ9: Gr. | CA9: Berechnungs- punkte | CC9: 2 | CD9: Gr. | CE9: Berechnungs- punkte
B10: =IF(AND(SUM(B6:B9)<>10,SUM(D6:D9)=12),"ACHTUNG Gleichstand --> Penaltyschießen erforderlich !!!","") ->  | M10: 14 | N10: =N9+Einteilung!G$6+Einteilung!G$7 -> 16:51:00 | O10: =AV6 -> U. Pichling | P10: =AV7 -> U. Altenfelden | Q10: 2 | R10: 0 | S10: I | T10: =Einteilung!B$2 -> U12 - LM | AQ10: =IF(AND(Q10="",R10=""),"",IF(Q10=R10,"",IF(Q10>R10,O10,P10))) -> U. Pichling | AR10: =IF(AND(Q10="",R10=""),"",IF(Q10=R10,"",IF(Q10>R10,P10,O10))) -> U. Altenfelden | AS10: =IF(AND(Q10="",R10=""),"",IF(Q10=R10,O10,"")) ->  | AT10: =IF(AND(Q10="",R10=""),"",IF(Q10=R10,P10,"")) ->  | AU10: 0 | AW10: 2 | AX10: 3 | AY10: 4 | AZ10: 5 | BA10: 6 | BB10: 7 | BC10: 8 | BD10: 9 | BE10: 10 | BY10: =BK$14 -> U. Gampern | BZ10: =VLOOKUP(BY10,Einteilung!$B:$E,4,FALSE) -> II | CA10: =BT$14 -> 7004049.997 | CC10: =BY$10 -> U. Gampern | CD10: =BZ$10 -> II | CE10: =VLOOKUP(CC10,AV:BI,10,FALSE) -> 7004050
BY11: =BK$6 -> U. Walding/Rottenegg | BZ11: =VLOOKUP(BY11,Einteilung!$B:$E,4,FALSE) -> I | CA11: =BT$6 -> 6003069.997 | CC11: =BY$11 -> U. Walding/Rottenegg | CD11: =BZ$11 -> I | CE11: =VLOOKUP(CC11,AV:BI,10,FALSE) -> 6003070
B12: GRUPPE II | M12: Rd. | N12: Zeit | O12: Ergebnisse GRUPPE II | AP12: II | AQ12: Sieger | AR12: Verlierer | AS12: Remis | AT12: Remis | AU12: HT | AV12: Team | AW12: Spiele | AX12: S | AY12: U | AZ12: N | BA12: + | BB12: - | BC12: Tordiff. | BD12: Punkte | BE12: Berechnung | BF12: Rang | BG12: Hilfswert | BH12: Berechnung NEU | BI12: Rang | BK12: Team | BL12: Spiele | BM12: S | BN12: U | BO12: N | BP12: + | BQ12: - | BR12: Tordiff. | BS12: Punkte | BT12: Berechnung | BU12: Rang | BY12: =BK$22 -> U. Ried/Riedmark | BZ12: =VLOOKUP(BY12,Einteilung!$B:$E,4,FALSE) -> III | CA12: =BT$22 -> 5008089.997 | CC12: =BY$12 -> U. Ried/Riedmark | CD12: =BZ$12 -> III | CE12: =VLOOKUP(CC12,AV:BI,10,FALSE) -> 5008090
B13: Rg. | C13: Team | D13: Sp. | E13: S | F13: U | G13: N | H13: + | I13: - | J13: Tord. | K13: Pkt. | M13: 3 | N13: =N6+Einteilung!G$6+Einteilung!G$7 -> 14:39:00 | O13: =AV13 -> U. St. Peter/Wimberg | P13: =AV14 -> U. Gampern | Q13: 1 | R13: 1 | S13: II | T13: =Einteilung!B$2 -> U12 - LM | AQ13: =IF(AND(Q13="",R13=""),"",IF(Q13=R13,"",IF(Q13>R13,O13,P13))) ->  | AR13: =IF(AND(Q13="",R13=""),"",IF(Q13=R13,"",IF(Q13>R13,P13,O13))) ->  | AS13: =IF(AND(Q13="",R13=""),"",IF(Q13=R13,O13,"")) -> U. St. Peter/Wimberg | AT13: =IF(AND(Q13="",R13=""),"",IF(Q13=R13,P13,"")) -> U. Gampern | AU13: =IF(ISERROR(IF(VLOOKUP(O13,$AV$13:$BI$16,9,0)=VLOOKUP(P13,$AV$13:$BI$16,9,0),IF(Q13>R13,1,IF(Q13=R13,0,-1)),0)),0,IF(VLOOKUP(O13,$AV$13:$BI$16,9,0)=VLOOKUP(P13,$AV$13:$BI$16,9,0),IF(Q13>R13,1,IF(Q13=R13,0,-1)),0)) -> 0 | AV13: =Einteilung!B13 -> U. St. Peter/Wimberg | AW13: =SUM(AX13:AZ13) -> 3 | AX13: =COUNTIF($AQ$13:$AQ$18,$AV13) -> 2 | AY13: =COUNTIF($AS$13:$AS$18,$AV13)+COUNTIF($AT$13:$AT$18,$AV13) -> 1 | AZ13: =COUNTIF($AR$13:$AR$18,$AV13) -> 0 | BA13: =SUM((O$13:O$18=AV13)*(Q$13:Q$18))+SUM((P$13:P$18=AV13)*(R$13:R$18)) -> 6 | BB13: =SUM((O$13:O$18=AV13)*(R$13:R$18))+SUM((P$13:P$18=AV13)*(Q$13:Q$18)) -> 1 | BC13: =BA13-BB13 -> 5 | BD13: =3*AX13+1*AY13 -> 7 | BE13: =BD13*1000000+BC13*1000+BA13*10 -> 7005060 | BG13: =SUMIF(O:O,AV13,AU:AU) -> 0 | BH13: =BD13*1000000+BC13*1000+BA13*10-AW13/1000+BG13*100000 -> 7005059.997 | BI13: =RANK(BH13,BH$13:BH$16,0) -> 1 | BK13: =AV$13 -> U. St. Peter/Wimberg | BL13: 3 | BM13: 2 | BN13: 1 | BO13: 0 | BP13: 6 | BQ13: 1 | BR13: 5 | BS13: 7 | BT13: =BH$13 -> 7005059.997 | BU13: =RANK(BT13,BT$13:BT$16,0) -> 1
B14: =IF(C14="","",RANK(BT13,BT$13:BT$18,0)) -> 1 | C14: =IF(SUM(D$14:D$18)=0,Einteilung!B13,BK13) -> U. St. Peter/Wimberg | D14: =BL13 -> 3 | E14: 2 | F14: 1 | G14: 0 | H14: 6 | I14: 1 | J14: 5 | K14: 7 | M14: 4 | N14: =N13+Einteilung!G$6+Einteilung!G$7 -> 14:51:00 | O14: =AV16 -> U. Lembach | P14: =AV15 -> UFC Aigen/Schlägl | Q14: 0 | R14: 3 | S14: II | T14: =Einteilung!B$2 -> U12 - LM | AQ14: UFC Aigen/Schlägl | AR14: U. Lembach | AU14: =IF(ISERROR(IF(VLOOKUP(O14,$AV$13:$BI$16,9,0)=VLOOKUP(P14,$AV$13:$BI$16,9,0),IF(Q14>R14,1,IF(Q14=R14,0,-1)),0)),0,IF(VLOOKUP(O14,$AV$13:$BI$16,9,0)=VLOOKUP(P14,$AV$13:$BI$16,9,0),IF(Q14>R14,1,IF(Q14=R14,0,-1)),0)) -> 0 | AV14: =Einteilung!B14 -> U. Gampern | AW14: =SUM(AX14:AZ14) -> 3 | AX14: =COUNTIF($AQ$13:$AQ$18,$AV14) -> 2 | AY14: =COUNTIF($AS$13:$AS$18,$AV14)+COUNTIF($AT$13:$AT$18,$AV14) -> 1 | AZ14: =COUNTIF($AR$13:$AR$18,$AV14) -> 0 | BA14: =SUM((O$13:O$18=AV14)*(Q$13:Q$18))+SUM((P$13:P$18=AV14)*(R$13:R$18)) -> 5 | BB14: =SUM((O$13:O$18=AV14)*(R$13:R$18))+SUM((P$13:P$18=AV14)*(Q$13:Q$18)) -> 1 | BC14: =BA14-BB14 -> 4 | BD14: =3*AX14+1*AY14 -> 7 | BE14: =BD14*1000000+BC14*1000+BA14*10 -> 7004050 | BG14: =SUMIF(O:O,AV14,AU:AU) -> 0 | BH14: =BD14*1000000+BC14*1000+BA14*10-AW14/1000+BG14*100000 -> 7004049.997 | BI14: =RANK(BH14,BH$13:BH$16,0) -> 2 | BK14: =AV$14 -> U. Gampern | BL14: 3 | BM14: 2 | BN14: 1 | BO14: 0 | BP14: 5 | BQ14: 1 | BR14: 4 | BS14: 7 | BT14: =BH$14 -> 7004049.997 | BU14: =RANK(BT14,BT$13:BT$16,0) -> 2
B15: =IF(C15="","",RANK(BT14,BT$13:BT$18,0)) -> 2 | C15: =IF(SUM(D$14:D$18)=0,Einteilung!B14,BK14) -> U. Gampern | D15: =BL14 -> 3 | E15: 2 | F15: 1 | G15: 0 | H15: 5 | I15: 1 | J15: 4 | K15: 7 | M15: 9 | N15: =N8+Einteilung!G$6+Einteilung!G$7 -> 15:51:00 | O15: =AV15 -> UFC Aigen/Schlägl | P15: =AV13 -> U. St. Peter/Wimberg | Q15: 0 | R15: 1 | S15: II | T15: =Einteilung!B$2 -> U12 - LM | AQ15: U. St. Peter/Wimberg | AR15: UFC Aigen/Schlägl | AU15: 0 | AV15: =Einteilung!B15 -> UFC Aigen/Schlägl | AW15: 3 | AX15: =COUNTIF($AQ$13:$AQ$18,$AV15) -> 1 | AY15: =COUNTIF($AS$13:$AS$18,$AV15)+COUNTIF($AT$13:$AT$18,$AV15) -> 0 | AZ15: =COUNTIF($AR$13:$AR$18,$AV15) -> 2 | BA15: =SUM((O$13:O$18=AV15)*(Q$13:Q$18))+SUM((P$13:P$18=AV15)*(R$13:R$18)) -> 3 | BB15: =SUM((O$13:O$18=AV15)*(R$13:R$18))+SUM((P$13:P$18=AV15)*(Q$13:Q$18)) -> 4 | BC15: -1 | BD15: 3 | BE15: 2999030 | BG15: =SUMIF(O:O,AV15,AU:AU) -> 0 | BH15: =BD15*1000000+BC15*1000+BA15*10-AW15/1000+BG15*100000 -> 2999029.997 | BI15: 3 | BK15: =AV$15 -> UFC Aigen/Schlägl | BL15: 3 | BM15: 1 | BN15: 0 | BO15: 2 | BP15: 3 | BQ15: 4 | BR15: -1 | BS15: 3 | BT15: =BH$15 -> 2999029.997 | BU15: =RANK(BT15,BT$13:BT$16,0) -> 3
B16: =IF(C16="","",RANK(BT15,BT$13:BT$18,0)) -> 3 | C16: =IF(SUM(D$14:D$18)=0,Einteilung!B15,BK15) -> UFC Aigen/Schlägl | D16: 3 | E16: 1 | F16: 0 | G16: 2 | H16: 3 | I16: 4 | J16: -1 | K16: 3 | M16: 10 | N16: =N15+Einteilung!G$6+Einteilung!G$7 -> 16:03:00 | O16: =AV16 -> U. Lembach | P16: =AV14 -> U. Gampern | Q16: 0 | R16: 1 | S16: II | T16: =Einteilung!B$2 -> U12 - LM | AQ16: U. Gampern | AR16: U. Lembach | AU16: 0 | AV16: =Einteilung!B16 -> U. Lembach | AW16: 3 | AX16: =COUNTIF($AQ$13:$AQ$18,$AV16) -> 0 | AY16: =COUNTIF($AS$13:$AS$18,$AV16)+COUNTIF($AT$13:$AT$18,$AV16) -> 0 | AZ16: =COUNTIF($AR$13:$AR$18,$AV16) -> 3 | BA16: =SUM((O$13:O$18=AV16)*(Q$13:Q$18))+SUM((P$13:P$18=AV16)*(R$13:R$18)) -> 0 | BB16: =SUM((O$13:O$18=AV16)*(R$13:R$18))+SUM((P$13:P$18=AV16)*(Q$13:Q$18)) -> 8 | BC16: -8 | BD16: 0 | BE16: -8000 | BG16: =SUMIF(O:O,AV16,AU:AU) -> 0 | BH16: -8000.003 | BI16: 4 | BK16: =AV$16 -> U. Lembach | BL16: 3 | BM16: 0 | BN16: 0 | BO16: 3 | BP16: 0 | BQ16: 8 | BR16: -8 | BS16: 0 | BT16: =BH$16 -> -8000.003 | BU16: =RANK(BT16,BT$13:BT$16,0) -> 4 | BY16: 3 | BZ16: Gr. | CA16: Berechnungs- punkte | CC16: 3 | CD16: Gr. | CE16: Berechnungs- punkte
B17: =IF(C17="","",RANK(BT16,BT$13:BT$18,0)) -> 4 | C17: =IF(SUM(D$14:D$18)=0,Einteilung!B16,BK16) -> U. Lembach | D17: 3 | E17: 0 | F17: 0 | G17: 3 | H17: 0 | I17: 8 | J17: -8 | K17: 0 | M17: 15 | N17: =N10+Einteilung!G$6+Einteilung!G$7 -> 17:03:00 | O17: =AV13 -> U. St. Peter/Wimberg | P17: =AV16 -> U. Lembach | Q17: 4 | R17: 0 | S17: II | T17: =Einteilung!B$2 -> U12 - LM | AQ17: U. St. Peter/Wimberg | AR17: U. Lembach | AU17: 0 | BY17: =BK$23 -> U. St. Martin/Mkr. | BZ17: =VLOOKUP(BY17,Einteilung!$B:$E,4,FALSE) -> III | CA17: =BT$23 -> 4002039.997 | CC17: =BY$17 -> U. St. Martin/Mkr. | CD17: =BZ$17 -> III | CE17: =VLOOKUP(CC17,AV:BI,10,FALSE) -> 4002040
B18: =IF(AND(SUM(B14:B17)<>10,SUM(D14:D17)=12),"ACHTUNG Gleichstand --> Penaltyschießen erforderlich !!!","") ->  | M18: 16 | N18: =N17+Einteilung!G$6+Einteilung!G$7 -> 17:15:00 | O18: =AV14 -> U. Gampern | P18: =AV15 -> UFC Aigen/Schlägl | Q18: 3 | R18: 0 | S18: II | T18: =Einteilung!B$2 -> U12 - LM | AQ18: U. Gampern | AR18: UFC Aigen/Schlägl | AU18: 0 | AW18: 2 | AX18: 3 | AY18: 4 | AZ18: 5 | BA18: 6 | BB18: 7 | BC18: 8 | BD18: 9 | BE18: 10 | BY18: =BK$15 -> UFC Aigen/Schlägl | BZ18: =VLOOKUP(BY18,Einteilung!$B:$E,4,FALSE) -> II | CA18: =BT$15 -> 2999029.997 | CC18: =BY$18 -> UFC Aigen/Schlägl | CD18: =BZ$18 -> II | CE18: =VLOOKUP(CC18,AV:BI,10,FALSE) -> 2999030
BY19: =BK$7 -> U. Pichling | BZ19: =VLOOKUP(BY19,Einteilung!$B:$E,4,FALSE) -> I | CA19: =BT$7 -> 2998039.997 | CC19: =BY$19 -> U. Pichling | CD19: =BZ$19 -> I | CE19: =VLOOKUP(CC19,AV:BI,10,FALSE) -> 2998040
B20: GRUPPE III | M20: Rd. | N20: Zeit | O20: Ergebnisse GRUPPE III | AP20: III | AQ20: Sieger | AR20: Verlierer | AS20: Remis | AT20: Remis | AU20: HT | AV20: Team | AW20: Spiele | AX20: S | AY20: U | AZ20: N | BA20: + | BB20: - | BC20: Tordiff. | BD20: Punkte | BE20: Berechnung | BF20: Rang | BG20: Hilfswert | BH20: Berechnung NEU | BI20: Rang | BK20: Team | BL20: Spiele | BM20: S | BN20: U | BO20: N | BP20: + | BQ20: - | BR20: Tordiff. | BS20: Punkte | BT20: Berechnung | BU20: Rang
B21: Rg. | C21: Team | D21: Sp. | E21: S | F21: U | G21: N | H21: + | I21: - | J21: Tord. | K21: Pkt. | M21: 5 | N21: =N14+Einteilung!G$6+Einteilung!G$7 -> 15:03:00 | O21: =AV21 -> U. St. Martin/Mkr. | P21: =AV22 -> SPG Putzleinsdorf/Hofkirchen | Q21: 4 | R21: 1 | S21: III | T21: =Einteilung!B$2 -> U12 - LM | AQ21: =IF(AND(Q21="",R21=""),"",IF(Q21=R21,"",IF(Q21>R21,O21,P21))) -> U. St. Martin/Mkr. | AR21: =IF(AND(Q21="",R21=""),"",IF(Q21=R21,"",IF(Q21>R21,P21,O21))) -> SPG Putzleinsdorf/Hofkirchen | AS21: =IF(AND(Q21="",R21=""),"",IF(Q21=R21,O21,"")) ->  | AT21: =IF(AND(Q21="",R21=""),"",IF(Q21=R21,P21,"")) ->  | AU21: =IF(ISERROR(IF(VLOOKUP(O21,$AV$21:$BI$24,9,0)=VLOOKUP(P21,$AV$21:$BI$24,9,0),IF(Q21>R21,1,IF(Q21=R21,0,-1)),0)),0,IF(VLOOKUP(O21,$AV$21:$BI$24,9,0)=VLOOKUP(P21,$AV$21:$BI$24,9,0),IF(Q21>R21,1,IF(Q21=R21,0,-1)),0)) -> 0 | AV21: =Einteilung!B20 -> U. St. Martin/Mkr. | AW21: =SUM(AX21:AZ21) -> 3 | AX21: =COUNTIF($AQ$21:$AQ$26,$AV21) -> 1 | AY21: =COUNTIF($AS$21:$AS$26,$AV21)+COUNTIF($AT$21:$AT$26,$AV21) -> 1 | AZ21: =COUNTIF($AR$21:$AR$26,$AV21) -> 1 | BA21: =SUM((O$21:O$26=AV21)*(Q$21:Q$26))+SUM((P$21:P$26=AV21)*(R$21:R$26)) -> 4 | BB21: =SUM((O$21:O$26=AV21)*(R$21:R$26))+SUM((P$21:P$26=AV21)*(Q$21:Q$26)) -> 2 | BC21: =BA21-BB21 -> 2 | BD21: =3*AX21+1*AY21 -> 4 | BE21: =BD21*1000000+BC21*1000+BA21*10 -> 4002040 | BG21: =SUMIF(O:O,AV21,AU:AU) -> 0 | BH21: =BD21*1000000+BC21*1000+BA21*10-AW21/1000+BG21*100000 -> 4002039.997 | BI21: =RANK(BH21,BH$21:BH$24,0) -> 3 | BK21: =AV$23 -> SPG Julbach/Ulrichsb./Klaffer | BL21: 3 | BM21: 2 | BN21: 1 | BO21: 0 | BP21: 7 | BQ21: 1 | BR21: 6 | BS21: 7 | BT21: =BH$23 -> 7006069.997 | BU21: =RANK(BT21,BT$21:BT$24,0) -> 1 | BY21: 4 | BZ21: Gr. | CA21: Berechnungs- punkte | CC21: 4 | CD21: Gr. | CE21: Berechnungs- punkte
B22: =IF(C22="","",RANK(BT21,BT$21:BT$26,0)) -> 1 | C22: =IF(SUM(D$22:D$28)=0,Einteilung!B20,BK21) -> SPG Julbach/Ulrichsb./Klaffer | D22: =BL21 -> 3 | E22: 2 | F22: 1 | G22: 0 | H22: 7 | I22: 1 | J22: 6 | K22: 7 | M22: 6 | N22: =N21+Einteilung!G$6+Einteilung!G$7 -> 15:15:00 | O22: =AV24 -> U. Ried/Riedmark | P22: =AV23 -> SPG Julbach/Ulrichsb./Klaffer | Q22: 1 | R22: 1 | S22: III | T22: =Einteilung!B$2 -> U12 - LM | AS22: U. Ried/Riedmark | AT22: SPG Julbach/Ulrichsb./Klaffer | AU22: =IF(ISERROR(IF(VLOOKUP(O22,$AV$21:$BI$24,9,0)=VLOOKUP(P22,$AV$21:$BI$24,9,0),IF(Q22>R22,1,IF(Q22=R22,0,-1)),0)),0,IF(VLOOKUP(O22,$AV$21:$BI$24,9,0)=VLOOKUP(P22,$AV$21:$BI$24,9,0),IF(Q22>R22,1,IF(Q22=R22,0,-1)),0)) -> 0 | AV22: =Einteilung!B21 -> SPG Putzleinsdorf/Hofkirchen | AW22: =SUM(AX22:AZ22) -> 3 | AX22: =COUNTIF($AQ$21:$AQ$26,$AV22) -> 0 | AY22: =COUNTIF($AS$21:$AS$26,$AV22)+COUNTIF($AT$21:$AT$26,$AV22) -> 0 | AZ22: =COUNTIF($AR$21:$AR$26,$AV22) -> 3 | BA22: =SUM((O$21:O$26=AV22)*(Q$21:Q$26))+SUM((P$21:P$26=AV22)*(R$21:R$26)) -> 1 | BB22: =SUM((O$21:O$26=AV22)*(R$21:R$26))+SUM((P$21:P$26=AV22)*(Q$21:Q$26)) -> 17 | BC22: =BA22-BB22 -> -16 | BD22: =3*AX22+1*AY22 -> 0 | BE22: =BD22*1000000+BC22*1000+BA22*10 -> -15990 | BG22: =SUMIF(O:O,AV22,AU:AU) -> 0 | BH22: =BD22*1000000+BC22*1000+BA22*10-AW22/1000+BG22*100000 -> -15990.003 | BI22: =RANK(BH22,BH$21:BH$24,0) -> 4 | BK22: =AV$24 -> U. Ried/Riedmark | BL22: 3 | BM22: 1 | BN22: 2 | BO22: 0 | BP22: 9 | BQ22: 1 | BR22: 8 | BS22: 5 | BT22: =BH$24 -> 5008089.997 | BU22: =RANK(BT22,BT$21:BT$24,0) -> 2 | BY22: =BK$16 -> U. Lembach | BZ22: =VLOOKUP(BY22,Einteilung!$B:$E,4,FALSE) -> II | CA22: =BT$16 -> -8000.003 | CC22: =BY$22 -> U. Lembach | CD22: =BZ$22 -> II | CE22: =VLOOKUP(CC22,AV:BI,10,FALSE) -> -8000
B23: =IF(C23="","",RANK(BT22,BT$21:BT$26,0)) -> 2 | C23: =IF(SUM(D$22:D$28)=0,Einteilung!B21,BK22) -> U. Ried/Riedmark | D23: 3 | E23: 1 | F23: 2 | G23: 0 | H23: 9 | I23: 1 | J23: 8 | K23: 5 | M23: 11 | N23: =N16+Einteilung!G$6+Einteilung!G$7 -> 16:15:00 | O23: =AV23 -> SPG Julbach/Ulrichsb./Klaffer | P23: =AV21 -> U. St. Martin/Mkr. | Q23: 1 | R23: 0 | S23: III | T23: =Einteilung!B$2 -> U12 - LM | AQ23: SPG Julbach/Ulrichsb./Klaffer | AR23: U. St. Martin/Mkr. | AU23: 0 | AV23: =Einteilung!B22 -> SPG Julbach/Ulrichsb./Klaffer | AW23: 3 | AX23: =COUNTIF($AQ$21:$AQ$26,$AV23) -> 2 | AY23: =COUNTIF($AS$21:$AS$26,$AV23)+COUNTIF($AT$21:$AT$26,$AV23) -> 1 | AZ23: =COUNTIF($AR$21:$AR$26,$AV23) -> 0 | BA23: =SUM((O$21:O$26=AV23)*(Q$21:Q$26))+SUM((P$21:P$26=AV23)*(R$21:R$26)) -> 7 | BB23: =SUM((O$21:O$26=AV23)*(R$21:R$26))+SUM((P$21:P$26=AV23)*(Q$21:Q$26)) -> 1 | BC23: 6 | BD23: 7 | BE23: 7006070 | BG23: =SUMIF(O:O,AV23,AU:AU) -> 0 | BH23: 7006069.997 | BI23: 1 | BK23: =AV$21 -> U. St. Martin/Mkr. | BL23: 3 | BM23: 1 | BN23: 1 | BO23: 1 | BP23: 4 | BQ23: 2 | BR23: 2 | BS23: 4 | BT23: =BH$21 -> 4002039.997 | BU23: =RANK(BT23,BT$21:BT$24,0) -> 3 | BY23: =BK$8 -> U. Altenfelden | BZ23: =VLOOKUP(BY23,Einteilung!$B:$E,4,FALSE) -> I | CA23: =BT$8 -> -13000.003 | CC23: =BY$23 -> U. Altenfelden | CD23: =BZ$23 -> I | CE23: =VLOOKUP(CC23,AV:BI,10,FALSE) -> -13000
B24: =IF(C24="","",RANK(BT23,BT$21:BT$26,0)) -> 3 | C24: =IF(SUM(D$22:D$28)=0,Einteilung!B22,BK23) -> U. St. Martin/Mkr. | D24: 3 | E24: 1 | F24: 1 | G24: 1 | H24: 4 | I24: 2 | J24: 2 | K24: 4 | M24: 12 | N24: =N23+Einteilung!G$6+Einteilung!G$7 -> 16:27:00 | O24: =AV24 -> U. Ried/Riedmark | P24: =AV22 -> SPG Putzleinsdorf/Hofkirchen | Q24: 8 | R24: 0 | S24: III | T24: =Einteilung!B$2 -> U12 - LM | AQ24: U. Ried/Riedmark | AR24: SPG Putzleinsdorf/Hofkirchen | AU24: 0 | AV24: =Einteilung!B23 -> U. Ried/Riedmark | AW24: =SUM(AX24:AZ24) -> 3 | AX24: =COUNTIF($AQ$21:$AQ$26,$AV24) -> 1 | AY24: =COUNTIF($AS$21:$AS$26,$AV24)+COUNTIF($AT$21:$AT$26,$AV24) -> 2 | AZ24: =COUNTIF($AR$21:$AR$26,$AV24) -> 0 | BA24: =SUM((O$21:O$26=AV24)*(Q$21:Q$26))+SUM((P$21:P$26=AV24)*(R$21:R$26)) -> 9 | BB24: =SUM((O$21:O$26=AV24)*(R$21:R$26))+SUM((P$21:P$26=AV24)*(Q$21:Q$26)) -> 1 | BC24: =BA24-BB24 -> 8 | BD24: =3*AX24+1*AY24 -> 5 | BE24: 5008090 | BG24: =SUMIF(O:O,AV24,AU:AU) -> 0 | BH24: 5008089.997 | BI24: 2 | BK24: =AV$22 -> SPG Putzleinsdorf/Hofkirchen | BL24: 3 | BM24: 0 | BN24: 0 | BO24: 3 | BP24: 1 | BQ24: 17 | BR24: -16 | BS24: 0 | BT24: =BH$22 -> -15990.003 | BU24: =RANK(BT24,BT$21:BT$24,0) -> 4 | BY24: =BK$24 -> SPG Putzleinsdorf/Hofkirchen | BZ24: =VLOOKUP(BY24,Einteilung!$B:$E,4,FALSE) -> III | CA24: =BT$24 -> -15990.003 | CC24: =BY$24 -> SPG Putzleinsdorf/Hofkirchen | CD24: =BZ$24 -> III | CE24: =VLOOKUP(CC24,AV:BI,10,FALSE) -> -15990
B25: =IF(C25="","",RANK(BT24,BT$21:BT$26,0)) -> 4 | C25: =IF(SUM(D$22:D$28)=0,Einteilung!B23,BK24) -> SPG Putzleinsdorf/Hofkirchen | D25: 3 | E25: 0 | F25: 0 | G25: 3 | H25: 1 | I25: 17 | J25: -16 | K25: 0 | M25: 17 | N25: =N18+Einteilung!G$6+Einteilung!G$7 -> 17:27:00 | O25: =AV21 -> U. St. Martin/Mkr. | P25: =AV24 -> U. Ried/Riedmark | Q25: 0 | R25: 0 | S25: III | T25: =Einteilung!B$2 -> U12 - LM | AS25: U. St. Martin/Mkr. | AT25: U. Ried/Riedmark | AU25: 0
B26: =IF(AND(SUM(B22:B25)<>10,SUM(D22:D25)=12),"ACHTUNG Gleichstand --> Penaltyschießen erforderlich !!!","") ->  | M26: 18 | N26: =N25+Einteilung!G$6+Einteilung!G$7 -> 17:39:00 | O26: =AV22 -> SPG Putzleinsdorf/Hofkirchen | P26: =AV23 -> SPG Julbach/Ulrichsb./Klaffer | Q26: 0 | R26: 5 | S26: III | T26: =Einteilung!B$2 -> U12 - LM | AQ26: SPG Julbach/Ulrichsb./Klaffer | AR26: SPG Putzleinsdorf/Hofkirchen | AU26: 0 | AW26: 2 | AX26: 3 | AY26: 4 | AZ26: 5 | BA26: 6 | BB26: 7 | BC26: 8 | BD26: 9 | BE26: 10

Sheet Play-off
B1: =Einteilung!B2 -> U12 - LM | AD1: Ergebnis U12
B3: U12 Vorrunde Gruppenspiele | K3: U12 Halbfinale (HF 1-6) | R3: U12 Final- & Platzierungsspiele
K5: HF 1: Bester Grp.-Vierter - 2. bester Grp.-Vierter | P5: Ränge 9-12 | R5: Spiel um Rg. 11: Verlierer HF 1- Verlierer HF 2
B6: GRUPPE I | K6: ='Vorrunde Gruppenspiele'!N26+Einteilung!G$6+3*Einteilung!G$7 -> 17:55:00 | L6: =IF(SUM(D$8:D$30)<36,"",'Vorrunde Gruppenspiele'!BY22) -> U. Lembach | M6: 1 | R6: =K28+Einteilung!G$6+2*Einteilung!G$7 -> 19:15:00 | S6: =IF(M6="","",IF(M6>M7,L7,IF(M6<M7,L6,IF(M6=M7,IF(N6>N7,L7,IF(N6<N7,L6,"Penalty !!!!!")))))) -> U. Lembach | T6: 2 | AD6: 12 | AE6: =IF(T6="","",IF(T6>T7,S7,IF(T6<T7,S6,IF(T6=T7,IF(U6>U7,S7,IF(U6<U7,S6,"Penalty !!!!!")))))) -> SPG Putzleinsdorf/Hofkirchen
B7: Rg. | C7: Team | D7: Sp. | E7: + | F7: - | G7: Tord. | H7: Pkt. | L7: =IF(SUM(D$8:D$30)<36,"",'Vorrunde Gruppenspiele'!BY23) -> U. Altenfelden | M7: 4 | S7: =IF(M10="","",IF(M10>M11,L11,IF(M10<M11,L10,IF(M10=M11,IF(N10>N11,L11,IF(N10<N11,L10,"Penalty !!!!!")))))) -> SPG Putzleinsdorf/Hofkirchen | T7: 0 | AD7: 11 | AE7: =IF(T6="","",IF(T6>T7,S6,IF(T6<T7,S7,IF(T6=T7,IF(U6>U7,S6,IF(U6<U7,S7,"Penalty !!!!!")))))) -> U. Lembach
B8: 1 | C8: ='Vorrunde Gruppenspiele'!C6 -> UFC Rohrbach-Berg | D8: ='Vorrunde Gruppenspiele'!D6 -> 3 | E8: ='Vorrunde Gruppenspiele'!H6 -> 12 | F8: ='Vorrunde Gruppenspiele'!I6 -> 0 | G8: ='Vorrunde Gruppenspiele'!J6 -> 12 | H8: ='Vorrunde Gruppenspiele'!K6 -> 9 | I8: =B8 -> 1
B9: 2 | C9: ='Vorrunde Gruppenspiele'!C7 -> U. Walding/Rottenegg | D9: ='Vorrunde Gruppenspiele'!D7 -> 3 | E9: ='Vorrunde Gruppenspiele'!H7 -> 7 | F9: ='Vorrunde Gruppenspiele'!I7 -> 4 | G9: ='Vorrunde Gruppenspiele'!J7 -> 3 | H9: ='Vorrunde Gruppenspiele'!K7 -> 6 | I9: =B9 -> 2 | K9: HF 2 : 3. bester Grp.-Dritter - 3. bester Grp.-Vierter | R9: Spiel um Rg. 9: Sieger HF 1- Sieger HF 2
B10: 3 | C10: ='Vorrunde Gruppenspiele'!C8 -> U. Pichling | D10: ='Vorrunde Gruppenspiele'!D8 -> 3 | E10: ='Vorrunde Gruppenspiele'!H8 -> 4 | F10: ='Vorrunde Gruppenspiele'!I8 -> 6 | G10: ='Vorrunde Gruppenspiele'!J8 -> -2 | H10: ='Vorrunde Gruppenspiele'!K8 -> 3 | I10: 3 | K10: =K6+Einteilung!G$6+2*Einteilung!G$7 -> 18:09:00 | L10: =IF(SUM(D$8:D$30)<36,"",'Vorrunde Gruppenspiele'!BY19) -> U. Pichling | M10: 6 | R10: =R6+Einteilung!G$6+Einteilung!G$7 -> 19:27:00 | S10: =IF(M6="","",IF(M6>M7,L6,IF(M6<M7,L7,IF(M6=M7,IF(N6>N7,L6,IF(N6<N7,L7,"Penalty !!!!!")))))) -> U. Altenfelden | T10: 0 | AD10: 10 | AE10: =IF(T10="","",IF(T10>T11,S11,IF(T10<T11,S10,IF(T10=T11,IF(U10>U11,S11,IF(U10<U11,S10,"Penalty !!!!!")))))) -> U. Altenfelden
B11: 4 | C11: ='Vorrunde Gruppenspiele'!C9 -> U. Altenfelden | D11: ='Vorrunde Gruppenspiele'!D9 -> 3 | E11: ='Vorrunde Gruppenspiele'!H9 -> 0 | F11: ='Vorrunde Gruppenspiele'!I9 -> 13 | G11: ='Vorrunde Gruppenspiele'!J9 -> -13 | H11: ='Vorrunde Gruppenspiele'!K9 -> 0 | I11: 4 | L11: =IF(SUM(D$8:D$30)<36,"",'Vorrunde Gruppenspiele'!BY24) -> SPG Putzleinsdorf/Hofkirchen | M11: 0 | S11: =IF(M10="","",IF(M10>M11,L10,IF(M10<M11,L11,IF(M10=M11,IF(N10>N11,L10,IF(N10<N11,L11,"Penalty !!!!!")))))) -> U. Pichling | T11: 1 | AD11: 9 | AE11: =IF(T10="","",IF(T10>T11,S10,IF(T10<T11,S11,IF(T10=T11,IF(U10>U11,S10,IF(U10<U11,S11,"Penalty !!!!!")))))) -> U. Pichling
K14: HF 3: 3. bester Grp.-Zweiter - Bester Grp.-Dritter | P14: Ränge 5-8 | R14: Spiel um Rg. 7: Verlierer HF 3- Verlierer HF 4
B15: GRUPPE II | K15: =K10+Einteilung!G$6+Einteilung!G$7 -> 18:21:00 | L15: =IF(SUM(D$8:D$30)<36,"",'Vorrunde Gruppenspiele'!BY12) -> U. Ried/Riedmark | M15: 0 | R15: =R10+Einteilung!G$6+2*Einteilung!G$7 -> 19:41:00 | S15: =IF(M15="","",IF(M15>M16,L16,IF(M15<M16,L15,IF(M15=M16,IF(N15>N16,L16,IF(N15<N16,L15,"Penalty !!!!!")))))) -> U. Ried/Riedmark | T15: 1 | U15: 2 | AD15: 8 | AE15: =IF(T15="","",IF(T15>T16,S16,IF(T15<T16,S15,IF(T15=T16,IF(U15>U16,S16,IF(U15<U16,S15,"Penalty !!!!!")))))) -> U. Ried/Riedmark
B16: Rg. | C16: Team | D16: Sp. | E16: + | F16: - | G16: Tord. | H16: Pkt. | I16: =B17 -> 1 | L16: =IF(SUM(D$8:D$30)<36,"",'Vorrunde Gruppenspiele'!BY17) -> U. St. Martin/Mkr. | M16: 2 | S16: =IF(M19="","",IF(M19>M20,L20,IF(M19<M20,L19,IF(M19=M20,IF(N19>N20,L20,IF(N19<N20,L19,"Penalty !!!!!")))))) -> UFC Aigen/Schlägl | T16: 1 | U16: 3 | AD16: 7 | AE16: =IF(T15="","",IF(T15>T16,S15,IF(T15<T16,S16,IF(T15=T16,IF(U15>U16,S15,IF(U15<U16,S16,"Penalty !!!!!")))))) -> UFC Aigen/Schlägl
B17: 1 | C17: ='Vorrunde Gruppenspiele'!C14 -> U. St. Peter/Wimberg | D17: ='Vorrunde Gruppenspiele'!D14 -> 3 | E17: ='Vorrunde Gruppenspiele'!H14 -> 6 | F17: ='Vorrunde Gruppenspiele'!I14 -> 1 | G17: ='Vorrunde Gruppenspiele'!J14 -> 5 | H17: ='Vorrunde Gruppenspiele'!K14 -> 7 | I17: =B17 -> 1
B18: 2 | C18: ='Vorrunde Gruppenspiele'!C15 -> U. Gampern | D18: ='Vorrunde Gruppenspiele'!D15 -> 3 | E18: ='Vorrunde Gruppenspiele'!H15 -> 5 | F18: ='Vorrunde Gruppenspiele'!I15 -> 1 | G18: ='Vorrunde Gruppenspiele'!J15 -> 4 | H18: ='Vorrunde Gruppenspiele'!K15 -> 7 | I18: =B18 -> 2 | K18: HF 4: 2. bester Grp.-Zweiter - 2. bester Grp.-Dritter | R18: Spiel um Rg. 5: Sieger HF 3- Sieger HF 4
B19: 3 | C19: ='Vorrunde Gruppenspiele'!C16 -> UFC Aigen/Schlägl | D19: ='Vorrunde Gruppenspiele'!D16 -> 3 | E19: ='Vorrunde Gruppenspiele'!H16 -> 3 | F19: ='Vorrunde Gruppenspiele'!I16 -> 4 | G19: ='Vorrunde Gruppenspiele'!J16 -> -1 | H19: ='Vorrunde Gruppenspiele'!K16 -> 3 | I19: 3 | K19: =K15+Einteilung!G$6+2*Einteilung!G$7 -> 18:35:00 | L19: =IF(SUM(D$8:D$30)<36,"",'Vorrunde Gruppenspiele'!BY11) -> U. Walding/Rottenegg | M19: 0 | N19: 3 | R19: =R15+Einteilung!G$6+Einteilung!G$7 -> 19:53:00 | S19: =IF(M15="","",IF(M15>M16,L15,IF(M15<M16,L16,IF(M15=M16,IF(N15>N16,L15,IF(N15<N16,L16,"Penalty !!!!!")))))) -> U. St. Martin/Mkr. | T19: 1 | AD19: 6 | AE19: =IF(T19="","",IF(T19>T20,S20,IF(T19<T20,S19,IF(T19=T20,IF(U19>U20,S20,IF(U19<U20,S19,"Penalty !!!!!")))))) -> U. St. Martin/Mkr.
B20: 4 | C20: ='Vorrunde Gruppenspiele'!C17 -> U. Lembach | D20: ='Vorrunde Gruppenspiele'!D17 -> 3 | E20: ='Vorrunde Gruppenspiele'!H17 -> 0 | F20: ='Vorrunde Gruppenspiele'!I17 -> 8 | G20: ='Vorrunde Gruppenspiele'!J17 -> -8 | H20: ='Vorrunde Gruppenspiele'!K17 -> 0 | I20: 4 | L20: =IF(SUM(D$8:D$30)<36,"",'Vorrunde Gruppenspiele'!BY18) -> UFC Aigen/Schlägl | M20: 0 | N20: 2 | S20: =IF(M19="","",IF(M19>M20,L19,IF(M19<M20,L20,IF(M19=M20,IF(N19>N20,L19,IF(N19<N20,L20,"Penalty !!!!!")))))) -> U. Walding/Rottenegg | T20: 4 | AD20: 5 | AE20: =IF(T19="","",IF(T19>T20,S19,IF(T19<T20,S20,IF(T19=T20,IF(U19>U20,S19,IF(U19<U20,S20,"Penalty !!!!!")))))) -> U. Walding/Rottenegg
K23: HF 5: Bester Grp.-Sieger - Bester Grp.-Zweiter | P23: Ränge 1-4 | R23: Spiel um Rg. 3: Verlierer HF 5 - Verlierer HF 6
B24: GRUPPE III | I24: =B26 -> 1 | K24: =K19+Einteilung!G$6+Einteilung!G$7 -> 18:47:00 | L24: =IF(SUM(D$8:D$30)<36,"",'Vorrunde Gruppenspiele'!BY5) -> UFC Rohrbach-Berg | M24: 6 | R24: =R19+Einteilung!G$6+2*Einteilung!G$7 -> 20:07:00 | S24: =IF(M24="","",IF(M24>M25,L25,IF(M24<M25,L24,IF(M24=M25,IF(N24>N25,L25,IF(N24<N25,L24,"Penalty !!!!!")))))) -> U. Gampern | T24: 1 | U24: 3 | AD24: 4 | AE24: =IF(T24="","",IF(T24>T25,S25,IF(T24<T25,S24,IF(T24=T25,IF(U24>U25,S25,IF(U24<U25,S24,"Penalty !!!!!")))))) -> SPG Julbach/Ulrichsb./Klaffer
B25: Rg. | C25: Team | D25: Sp. | E25: + | F25: - | G25: Tord. | H25: Pkt. | I25: =B27 -> 2 | L25: =IF(SUM(D$8:D$30)<36,"",'Vorrunde Gruppenspiele'!BY10) -> U. Gampern | M25: 0 | S25: =IF(M28="","",IF(M28>M29,L29,IF(M28<M29,L28,IF(M28=M29,IF(N28>N29,L29,IF(N28<N29,L28,"Penalty !!!!!")))))) -> SPG Julbach/Ulrichsb./Klaffer | T25: 1 | U25: 1 | AD25: 3 | AE25: =IF(T24="","",IF(T24>T25,S24,IF(T24<T25,S25,IF(T24=T25,IF(U24>U25,S24,IF(U24<U25,S25,"Penalty !!!!!")))))) -> U. Gampern
B26: 1 | C26: ='Vorrunde Gruppenspiele'!C22 -> SPG Julbach/Ulrichsb./Klaffer | D26: ='Vorrunde Gruppenspiele'!D22 -> 3 | E26: ='Vorrunde Gruppenspiele'!H22 -> 7 | F26: ='Vorrunde Gruppenspiele'!I22 -> 1 | G26: ='Vorrunde Gruppenspiele'!J22 -> 6 | H26: ='Vorrunde Gruppenspiele'!K22 -> 7 | I26: =B26 -> 1
B27: 2 | C27: ='Vorrunde Gruppenspiele'!C23 -> U. Ried/Riedmark | D27: ='Vorrunde Gruppenspiele'!D23 -> 3 | E27: ='Vorrunde Gruppenspiele'!H23 -> 9 | F27: ='Vorrunde Gruppenspiele'!I23 -> 1 | G27: ='Vorrunde Gruppenspiele'!J23 -> 8 | H27: ='Vorrunde Gruppenspiele'!K23 -> 5 | I27: =B27 -> 2 | K27: HF 6: 2. bester Grp.-Sieger - 3. bester Grp.-Sieger | R27: FINALE: Sieger HF 5 - Sieger HF 6
B28: 3 | C28: ='Vorrunde Gruppenspiele'!C24 -> U. St. Martin/Mkr. | D28: ='Vorrunde Gruppenspiele'!D24 -> 3 | E28: ='Vorrunde Gruppenspiele'!H24 -> 4 | F28: ='Vorrunde Gruppenspiele'!I24 -> 2 | G28: ='Vorrunde Gruppenspiele'!J24 -> 2 | H28: ='Vorrunde Gruppenspiele'!K24 -> 4 | I28: 3 | K28: =K24+Einteilung!G$6+2*Einteilung!G$7 -> 19:01:00 | L28: =IF(SUM(D$8:D$30)<36,"",'Vorrunde Gruppenspiele'!BY6) -> SPG Julbach/Ulrichsb./Klaffer | M28: 3 | R28: =R24+Einteilung!G$6+1.5*Einteilung!G$7 -> 20:20:00 | S28: =IF(M24="","",IF(M24>M25,L24,IF(M24<M25,L25,IF(M24=M25,IF(N24>N25,L24,IF(N24<N25,Y,"Penalty !!!!!")))))) -> UFC Rohrbach-Berg | T28: 3 | AD28: 2 | AE28: =IF(T28="","",IF(T28>T29,S29,IF(T28<T29,S28,IF(T28=T29,IF(U28>U29,S29,IF(U28<U29,S28,"Penalty !!!!!")))))) -> U. St. Peter/Wimberg
B29: 4 | C29: ='Vorrunde Gruppenspiele'!C25 -> SPG Putzleinsdorf/Hofkirchen | D29: ='Vorrunde Gruppenspiele'!D25 -> 3 | E29: ='Vorrunde Gruppenspiele'!H25 -> 1 | F29: ='Vorrunde Gruppenspiele'!I25 -> 17 | G29: ='Vorrunde Gruppenspiele'!J25 -> -16 | H29: ='Vorrunde Gruppenspiele'!K25 -> 0 | I29: 4 | L29: =IF(SUM(D$8:D$30)<36,"",'Vorrunde Gruppenspiele'!BY7) -> U. St. Peter/Wimberg | M29: 4 | S29: =IF(M28="","",IF(M28>M29,L28,IF(M28<M29,L29,IF(M28=M29,IF(N28>N29,L28,IF(N28<N29,L29,"Penalty !!!!!")))))) -> U. St. Peter/Wimberg | T29: 1 | AD29: 1 | AE29: =IF(T28="","",IF(T28>T29,S28,IF(T28<T29,S29,IF(T28=T29,IF(U28>U29,S28,IF(U28<U29,S29,"Penalty !!!!!")))))) -> UFC Rohrbach-Berg

Sheet Modus Play-off
B1: U12 | AD1: Ergebnis U12
B3: U12 Vorrunde Gruppenspiele | K3: U12 Halbfinale (HF 1-10) | R3: U12 Final- & Platzierungsspiele
K5: HF 1: Bester Grp.-Vierter - 2. bester Grp.-Vierter | P5: Ränge 9-12 | R5: Spiel um Rg. 11: Verlierer HF 1- Verlierer HF 2
B6: GRUPPE I | K6: 17:55:00 | R6: 19:15:00 | AD6: 12 | AE6: U. Walding/Rottenegg
B7: Rg. | C7: Team | D7: Sp. | E7: + | F7: - | G7: Tord. | H7: Pkt. | AD7: 11 | AE7: U. Ried/Riedmark
B8: 1 | I8: 1
B9: 2 | I9: 2 | K9: HF 2 : 3. bester Grp.-Dritter - 3. bester Grp.-Vierter | R9: Spiel um Rg. 9: Sieger HF 1- Sieger HF 2
B10: 3 | I10: 3 | K10: 18:09:00 | R10: 19:27:00 | AD10: 10 | AE10: UFC Aigen/Schlägl
B11: 4 | I11: 4 | AD11: 9 | AE11: U. Lembach
K14: HF 3: Bester Grp.-Dritter - 2. Bester Grp.-Dritter | P14: Ränge 5-8 | R14: Spiel um Rg. 7: Verlierer HF 3- Verlierer HF 4
B15: GRUPPE II | K15: 18:21:00 | R15: 19:41:00 | AD15: 8 | AE15: U. Altenfelden
B16: Rg. | C16: Team | D16: Sp. | E16: + | F16: - | G16: Tord. | H16: Pkt. | I16: 1 | AD16: 7 | AE16: U. Pichling
B17: 1 | I17: 2
B18: 2 | I18: 3 | K18: HF 4: 2. bester Grp.-Zweiter - 3. bester Grp.-Zweiter | R18: Spiel um Rg. 5: Sieger HF 3- Sieger HF 4
B19: 3 | I19: 4 | K19: 18:35:00 | R19: 19:53:00 | AD19: 6 | AE19: U. Gampern
B20: 4 | AD20: 5 | AE20: SPG Julbach/Ulrichsb./Klaffer
K23: HF 5: Bester Grp.-Sieger - Bester Grp.-Zweiter | P23: Ränge 1-4 | R23: Spiel um Rg. 3: Verlierer HF 5 - Verlierer HF 6
B24: GRUPPE III | I24: 1 | K24: 18:47:00 | AD24: 4 | AE24: SPG Putzleinsdorf/Hofkirchen
B25: Rg. | C25: Team | D25: Sp. | E25: + | F25: - | G25: Tord. | H25: Pkt. | I25: 2 | AD25: 3 | AE25: U. St. Martin/Mkr.
B26: 1 | I26: 3
B27: 2 | I27: 4 | K27: HF 6: 2. bester Grp.-Sieger - 3. bester Grp.-Sieger | R27: FINALE: Sieger HF 5 - Sieger HF 6
B28: 3 | I28: 0 | K28: 19:01:00 | R28: 20:20:00 | AD28: 2 | AE28: U. St. Peter/Wimberg
B29: 4 | AD29: 1 | AE29: UFC Rohrbach-Berg

Sheet Torschützen U12
E1: =SUM(F65:Q65) -> 0 | F1: Torschützen
F3: Gruppe I | J3: Gruppe II | N3: Gruppe III | T3: Gruppe I | X3: Gruppe II | AB3: Gruppe III
A4: Rang | B4: Tore | C4: Anzahl Spieler | F4: =Einteilung!$B6 -> UFC Rohrbach-Berg | G4: =Einteilung!$B7 -> U. Pichling | H4: =Einteilung!$B8 -> U. Altenfelden | I4: =Einteilung!$B9 -> U. Walding/Rottenegg | J4: =Einteilung!$B13 -> U. St. Peter/Wimberg | K4: =Einteilung!$B14 -> U. Gampern | L4: =Einteilung!$B15 -> UFC Aigen/Schlägl | M4: =Einteilung!$B16 -> U. Lembach | N4: =Einteilung!$B20 -> U. St. Martin/Mkr. | O4: =Einteilung!$B21 -> SPG Putzleinsdorf/Hofkirchen | P4: =Einteilung!$B22 -> SPG Julbach/Ulrichsb./Klaffer | Q4: =Einteilung!$B23 -> U. Ried/Riedmark | S4: Rückennummer | T4: =F4 -> UFC Rohrbach-Berg | U4: U. Pichling | V4: U. Altenfelden | W4: U. Walding/Rottenegg | X4: U. St. Peter/Wimberg | Y4: U. Gampern | Z4: UFC Aigen/Schlägl | AA4: U. Lembach | AB4: U. St. Martin/Mkr. | AC4: SPG Putzleinsdorf/Hofkirchen | AD4: SPG Julbach/Ulrichsb./Klaffer | AE4: =Q4 -> U. Ried/Riedmark
A5: 1 | B5: =IF(LARGE(T$5:AE$104,A5)=0,"",LARGE(T$5:AE$104,A5)) ->  | C5: =IF(B5="","",COUNTIF(T$5:AE$104,B5)) ->  | E5: RÜCKENNUMMER | R5: 1 | S5: 1 | T5: =COUNTIF(F$5:F$63,$S5) -> 0 | U5: =COUNTIF(G$5:G$63,$S5) -> 0 | V5: =COUNTIF(H$5:H$63,$S5) -> 0 | W5: =COUNTIF(I$5:I$63,$S5) -> 0 | X5: =COUNTIF(J$5:J$63,$S5) -> 0 | Y5: =COUNTIF(K$5:K$63,$S5) -> 0 | Z5: =COUNTIF(L$5:L$63,$S5) -> 0 | AA5: =COUNTIF(M$5:M$63,$S5) -> 0 | AB5: =COUNTIF(N$5:N$63,$S5) -> 0 | AC5: =COUNTIF(O$5:O$63,$S5) -> 0 | AD5: =COUNTIF(P$5:P$63,$S5) -> 0 | AE5: =COUNTIF(Q$5:Q$63,$S5) -> 0
A6: =IF(B6="","",A5+1) ->  | B6: =IF(B5="","",IF(B5-1<=0,"",B5-1)) ->  | R6: 2 | S6: 2 | T6: 0 | U6: 0 | V6: 0 | W6: 0 | X6: 0 | Y6: 0 | Z6: 0 | AA6: 0 | AB6: 0 | AC6: 0 | AD6: 0 | AE6: 0
A7: =IF(B7="","",A6+1) ->  | R7: 3 | S7: 3 | T7: 0 | U7: 0 | V7: 0 | W7: 0 | X7: 0 | Y7: 0 | Z7: 0 | AA7: 0 | AB7: 0 | AC7: 0 | AD7: 0 | AE7: 0
A8: =IF(B8="","",A7+1) ->  | R8: 4 | S8: 4 | T8: 0 | U8: 0 | V8: 0 | W8: 0 | X8: 0 | Y8: 0 | Z8: 0 | AA8: 0 | AB8: 0 | AC8: 0 | AD8: 0 | AE8: 0
R9: 5 | S9: 5 | T9: 0 | U9: 0 | V9: 0 | W9: 0 | X9: 0 | Y9: 0 | Z9: 0 | AA9: 0 | AB9: 0 | AC9: 0 | AD9: 0 | AE9: 0
R10: 6 | S10: 6 | T10: 0 | U10: 0 | V10: 0 | W10: 0 | X10: 0 | Y10: 0 | Z10: 0 | AA10: 0 | AB10: 0 | AC10: 0 | AD10: 0 | AE10: 0
R11: 7 | S11: 7 | T11: 0 | U11: 0 | V11: 0 | W11: 0 | X11: 0 | Y11: 0 | Z11: 0 | AA11: 0 | AB11: 0 | AC11: 0 | AD11: 0 | AE11: 0
R12: 8 | S12: 8 | T12: 0 | U12: 0 | V12: 0 | W12: 0 | X12: 0 | Y12: 0 | Z12: 0 | AA12: 0 | AB12: 0 | AC12: 0 | AD12: 0 | AE12: 0
R13: 9 | S13: 9 | T13: 0 | U13: 0 | V13: 0 | W13: 0 | X13: 0 | Y13: 0 | Z13: 0 | AA13: 0 | AB13: 0 | AC13: 0 | AD13: 0 | AE13: 0
R14: 10 | S14: 10 | T14: 0 | U14: 0 | V14: 0 | W14: 0 | X14: 0 | Y14: 0 | Z14: 0 | AA14: 0 | AB14: 0 | AC14: 0 | AD14: 0 | AE14: 0
R15: 11 | S15: 11 | T15: 0 | U15: 0 | V15: 0 | W15: 0 | X15: 0 | Y15: 0 | Z15: 0 | AA15: 0 | AB15: 0 | AC15: 0 | AD15: 0 | AE15: 0
R16: 12 | S16: 12 | T16: 0 | U16: 0 | V16: 0 | W16: 0 | X16: 0 | Y16: 0 | Z16: 0 | AA16: 0 | AB16: 0 | AC16: 0 | AD16: 0 | AE16: 0
R17: 13 | S17: 13 | T17: 0 | U17: 0 | V17: 0 | W17: 0 | X17: 0 | Y17: 0 | Z17: 0 | AA17: 0 | AB17: 0 | AC17: 0 | AD17: 0 | AE17: 0
R18: 14 | S18: 14 | T18: 0 | U18: 0 | V18: 0 | W18: 0 | X18: 0 | Y18: 0 | Z18: 0 | AA18: 0 | AB18: 0 | AC18: 0 | AD18: 0 | AE18: 0
B19: =IF(B18="","",IF(B18-1<=0,"",B18-1)) ->  | R19: 15 | S19: 15 | T19: 0 | U19: 0 | V19: 0 | W19: 0 | X19: 0 | Y19: 0 | Z19: 0 | AA19: 0 | AB19: 0 | AC19: 0 | AD19: 0 | AE19: 0
R20: 16 | S20: 16 | T20: 0 | U20: 0 | V20: 0 | W20: 0 | X20: 0 | Y20: 0 | Z20: 0 | AA20: 0 | AB20: 0 | AC20: 0 | AD20: 0 | AE20: 0
R21: 17 | S21: 17 | T21: 0 | U21: 0 | V21: 0 | W21: 0 | X21: 0 | Y21: 0 | Z21: 0 | AA21: 0 | AB21: 0 | AC21: 0 | AD21: 0 | AE21: 0
R22: 18 | S22: 18 | T22: 0 | U22: 0 | V22: 0 | W22: 0 | X22: 0 | Y22: 0 | Z22: 0 | AA22: 0 | AB22: 0 | AC22: 0 | AD22: 0 | AE22: 0
R23: 19 | S23: 19 | T23: 0 | U23: 0 | V23: 0 | W23: 0 | X23: 0 | Y23: 0 | Z23: 0 | AA23: 0 | AB23: 0 | AC23: 0 | AD23: 0 | AE23: 0
R24: 20 | S24: 20 | T24: 0 | U24: 0 | V24: 0 | W24: 0 | X24: 0 | Y24: 0 | Z24: 0 | AA24: 0 | AB24: 0 | AC24: 0 | AD24: 0 | AE24: 0
R25: 21 | S25: 21 | T25: 0 | U25: 0 | V25: 0 | W25: 0 | X25: 0 | Y25: 0 | Z25: 0 | AA25: 0 | AB25: 0 | AC25: 0 | AD25: 0 | AE25: 0
R26: 22 | S26: 22 | T26: 0 | U26: 0 | V26: 0 | W26: 0 | X26: 0 | Y26: 0 | Z26: 0 | AA26: 0 | AB26: 0 | AC26: 0 | AD26: 0 | AE26: 0
R27: 23 | S27: 23 | T27: 0 | U27: 0 | V27: 0 | W27: 0 | X27: 0 | Y27: 0 | Z27: 0 | AA27: 0 | AB27: 0 | AC27: 0 | AD27: 0 | AE27: 0
R28: 24 | S28: 24 | T28: 0 | U28: 0 | V28: 0 | W28: 0 | X28: 0 | Y28: 0 | Z28: 0 | AA28: 0 | AB28: 0 | AC28: 0 | AD28: 0 | AE28: 0
R29: 25 | S29: 25 | T29: 0 | U29: 0 | V29: 0 | W29: 0 | X29: 0 | Y29: 0 | Z29: 0 | AA29: 0 | AB29: 0 | AC29: 0 | AD29: 0 | AE29: 0
R30: 26 | S30: 26 | T30: 0 | U30: 0 | V30: 0 | W30: 0 | X30: 0 | Y30: 0 | Z30: 0 | AA30: 0 | AB30: 0 | AC30: 0 | AD30: 0 | AE30: 0
R31: 27 | S31: 27 | T31: 0 | U31: 0 | V31: 0 | W31: 0 | X31: 0 | Y31: 0 | Z31: 0 | AA31: 0 | AB31: 0 | AC31: 0 | AD31: 0 | AE31: 0
R32: 28 | S32: 28 | T32: 0 | U32: 0 | V32: 0 | W32: 0 | X32: 0 | Y32: 0 | Z32: 0 | AA32: 0 | AB32: 0 | AC32: 0 | AD32: 0 | AE32: 0
R33: 29 | S33: 29 | T33: 0 | U33: 0 | V33: 0 | W33: 0 | X33: 0 | Y33: 0 | Z33: 0 | AA33: 0 | AB33: 0 | AC33: 0 | AD33: 0 | AE33: 0
R34: 30 | S34: 30 | T34: 0 | U34: 0 | V34: 0 | W34: 0 | X34: 0 | Y34: 0 | Z34: 0 | AA34: 0 | AB34: 0 | AC34: 0 | AD34: 0 | AE34: 0
R35: 31 | S35: 31 | T35: 0 | U35: 0 | V35: 0 | W35: 0 | X35: 0 | Y35: 0 | Z35: 0 | AA35: 0 | AB35: 0 | AC35: 0 | AD35: 0 | AE35: 0
R36: 32 | S36: 32 | T36: 0 | U36: 0 | V36: 0 | W36: 0 | X36: 0 | Y36: 0 | Z36: 0 | AA36: 0 | AB36: 0 | AC36: 0 | AD36: 0 | AE36: 0
R37: 33 | S37: 33 | T37: =COUNTIF(F$5:F$63,$S37) -> 0 | U37: =COUNTIF(G$5:G$63,$S37) -> 0 | V37: =COUNTIF(H$5:H$63,$S37) -> 0 | W37: =COUNTIF(I$5:I$63,$S37) -> 0 | X37: =COUNTIF(J$5:J$63,$S37) -> 0 | Y37: =COUNTIF(K$5:K$63,$S37) -> 0 | Z37: =COUNTIF(L$5:L$63,$S37) -> 0 | AA37: =COUNTIF(M$5:M$63,$S37) -> 0 | AB37: =COUNTIF(N$5:N$63,$S37) -> 0 | AC37: =COUNTIF(O$5:O$63,$S37) -> 0 | AD37: =COUNTIF(P$5:P$63,$S37) -> 0 | AE37: =COUNTIF(Q$5:Q$63,$S37) -> 0
R38: 34 | S38: 34 | T38: 0 | U38: 0 | V38: 0 | W38: 0 | X38: 0 | Y38: 0 | Z38: 0 | AA38: 0 | AB38: 0 | AC38: 0 | AD38: 0 | AE38: 0
R39: 35 | S39: 35 | T39: 0 | U39: 0 | V39: 0 | W39: 0 | X39: 0 | Y39: 0 | Z39: 0 | AA39: 0 | AB39: 0 | AC39: 0 | AD39: 0 | AE39: 0
R40: 36 | S40: 36 | T40: 0 | U40: 0 | V40: 0 | W40: 0 | X40: 0 | Y40: 0 | Z40: 0 | AA40: 0 | AB40: 0 | AC40: 0 | AD40: 0 | AE40: 0
R41: 37 | S41: 37 | T41: 0 | U41: 0 | V41: 0 | W41: 0 | X41: 0 | Y41: 0 | Z41: 0 | AA41: 0 | AB41: 0 | AC41: 0 | AD41: 0 | AE41: 0
R42: 38 | S42: 38 | T42: 0 | U42: 0 | V42: 0 | W42: 0 | X42: 0 | Y42: 0 | Z42: 0 | AA42: 0 | AB42: 0 | AC42: 0 | AD42: 0 | AE42: 0
R43: 39 | S43: 39 | T43: 0 | U43: 0 | V43: 0 | W43: 0 | X43: 0 | Y43: 0 | Z43: 0 | AA43: 0 | AB43: 0 | AC43: 0 | AD43: 0 | AE43: 0
R44: 40 | S44: 40 | T44: 0 | U44: 0 | V44: 0 | W44: 0 | X44: 0 | Y44: 0 | Z44: 0 | AA44: 0 | AB44: 0 | AC44: 0 | AD44: 0 | AE44: 0
R45: 41 | S45: 41 | T45: 0 | U45: 0 | V45: 0 | W45: 0 | X45: 0 | Y45: 0 | Z45: 0 | AA45: 0 | AB45: 0 | AC45: 0 | AD45: 0 | AE45: 0
R46: 42 | S46: 42 | T46: 0 | U46: 0 | V46: 0 | W46: 0 | X46: 0 | Y46: 0 | Z46: 0 | AA46: 0 | AB46: 0 | AC46: 0 | AD46: 0 | AE46: 0
R47: 43 | S47: 43 | T47: 0 | U47: 0 | V47: 0 | W47: 0 | X47: 0 | Y47: 0 | Z47: 0 | AA47: 0 | AB47: 0 | AC47: 0 | AD47: 0 | AE47: 0
R48: 44 | S48: 44 | T48: 0 | U48: 0 | V48: 0 | W48: 0 | X48: 0 | Y48: 0 | Z48: 0 | AA48: 0 | AB48: 0 | AC48: 0 | AD48: 0 | AE48: 0
R49: 45 | S49: 45 | T49: 0 | U49: 0 | V49: 0 | W49: 0 | X49: 0 | Y49: 0 | Z49: 0 | AA49: 0 | AB49: 0 | AC49: 0 | AD49: 0 | AE49: 0
R50: 46 | S50: 46 | T50: 0 | U50: 0 | V50: 0 | W50: 0 | X50: 0 | Y50: 0 | Z50: 0 | AA50: 0 | AB50: 0 | AC50: 0 | AD50: 0 | AE50: 0
R51: 47 | S51: 47 | T51: 0 | U51: 0 | V51: 0 | W51: 0 | X51: 0 | Y51: 0 | Z51: 0 | AA51: 0 | AB51: 0 | AC51: 0 | AD51: 0 | AE51: 0
R52: 48 | S52: 48 | T52: 0 | U52: 0 | V52: 0 | W52: 0 | X52: 0 | Y52: 0 | Z52: 0 | AA52: 0 | AB52: 0 | AC52: 0 | AD52: 0 | AE52: 0
R53: 49 | S53: 49 | T53: 0 | U53: 0 | V53: 0 | W53: 0 | X53: 0 | Y53: 0 | Z53: 0 | AA53: 0 | AB53: 0 | AC53: 0 | AD53: 0 | AE53: 0
R54: 50 | S54: 50 | T54: 0 | U54: 0 | V54: 0 | W54: 0 | X54: 0 | Y54: 0 | Z54: 0 | AA54: 0 | AB54: 0 | AC54: 0 | AD54: 0 | AE54: 0
R55: 51 | S55: 51 | T55: 0 | U55: 0 | V55: 0 | W55: 0 | X55: 0 | Y55: 0 | Z55: 0 | AA55: 0 | AB55: 0 | AC55: 0 | AD55: 0 | AE55: 0
R56: 52 | S56: 52 | T56: 0 | U56: 0 | V56: 0 | W56: 0 | X56: 0 | Y56: 0 | Z56: 0 | AA56: 0 | AB56: 0 | AC56: 0 | AD56: 0 | AE56: 0
R57: 53 | S57: 53 | T57: 0 | U57: 0 | V57: 0 | W57: 0 | X57: 0 | Y57: 0 | Z57: 0 | AA57: 0 | AB57: 0 | AC57: 0 | AD57: 0 | AE57: 0
R58: 54 | S58: 54 | T58: 0 | U58: 0 | V58: 0 | W58: 0 | X58: 0 | Y58: 0 | Z58: 0 | AA58: 0 | AB58: 0 | AC58: 0 | AD58: 0 | AE58: 0
R59: 55 | S59: 55 | T59: 0 | U59: 0 | V59: 0 | W59: 0 | X59: 0 | Y59: 0 | Z59: 0 | AA59: 0 | AB59: 0 | AC59: 0 | AD59: 0 | AE59: 0
R60: 56 | S60: 56 | T60: 0 | U60: 0 | V60: 0 | W60: 0 | X60: 0 | Y60: 0 | Z60: 0 | AA60: 0 | AB60: 0 | AC60: 0 | AD60: 0 | AE60: 0
R61: 57 | S61: 57 | T61: 0 | U61: 0 | V61: 0 | W61: 0 | X61: 0 | Y61: 0 | Z61: 0 | AA61: 0 | AB61: 0 | AC61: 0 | AD61: 0 | AE61: 0
R62: 58 | S62: 58 | T62: 0 | U62: 0 | V62: 0 | W62: 0 | X62: 0 | Y62: 0 | Z62: 0 | AA62: 0 | AB62: 0 | AC62: 0 | AD62: 0 | AE62: 0
R63: 59 | S63: 59 | T63: 0 | U63: 0 | V63: 0 | W63: 0 | X63: 0 | Y63: 0 | Z63: 0 | AA63: 0 | AB63: 0 | AC63: 0 | AD63: 0 | AE63: 0
R64: 60 | S64: 60 | T64: 0 | U64: 0 | V64: 0 | W64: 0 | X64: 0 | Y64: 0 | Z64: 0 | AA64: 0 | AB64: 0 | AC64: 0 | AD64: 0 | AE64: 0
F65: =COUNTA(F5:F64) -> 0 | G65: =COUNTA(G5:G64) -> 0 | H65: 0 | I65: 0 | J65: 0 | K65: 0 | L65: 0 | M65: 0 | N65: 0 | O65: 0 | P65: 0 | Q65: 0 | S65: 61 | T65: 0 | U65: 0 | V65: 0 | W65: 0 | X65: 0 | Y65: 0 | Z65: 0 | AA65: 0 | AB65: 0 | AC65: 0 | AD65: 0 | AE65: 0
S66: 62 | T66: 0 | U66: 0 | V66: 0 | W66: 0 | X66: 0 | Y66: 0 | Z66: 0 | AA66: 0 | AB66: 0 | AC66: 0 | AD66: 0 | AE66: 0
S67: 63 | T67: 0 | U67: 0 | V67: 0 | W67: 0 | X67: 0 | Y67: 0 | Z67: 0 | AA67: 0 | AB67: 0 | AC67: 0 | AD67: 0 | AE67: 0
S68: 64 | T68: 0 | U68: 0 | V68: 0 | W68: 0 | X68: 0 | Y68: 0 | Z68: 0 | AA68: 0 | AB68: 0 | AC68: 0 | AD68: 0 | AE68: 0
S69: 65 | T69: =COUNTIF(F$5:F$63,$S69) -> 0 | U69: =COUNTIF(G$5:G$63,$S69) -> 0 | V69: =COUNTIF(H$5:H$63,$S69) -> 0 | W69: =COUNTIF(I$5:I$63,$S69) -> 0 | X69: =COUNTIF(J$5:J$63,$S69) -> 0 | Y69: =COUNTIF(K$5:K$63,$S69) -> 0 | Z69: =COUNTIF(L$5:L$63,$S69) -> 0 | AA69: =COUNTIF(M$5:M$63,$S69) -> 0 | AB69: =COUNTIF(N$5:N$63,$S69) -> 0 | AC69: =COUNTIF(O$5:O$63,$S69) -> 0 | AD69: =COUNTIF(P$5:P$63,$S69) -> 0 | AE69: =COUNTIF(Q$5:Q$63,$S69) -> 0
S70: 66 | T70: 0 | U70: 0 | V70: 0 | W70: 0 | X70: 0 | Y70: 0 | Z70: 0 | AA70: 0 | AB70: 0 | AC70: 0 | AD70: 0 | AE70: 0
S71: 67 | T71: 0 | U71: 0 | V71: 0 | W71: 0 | X71: 0 | Y71: 0 | Z71: 0 | AA71: 0 | AB71: 0 | AC71: 0 | AD71: 0 | AE71: 0
S72: 68 | T72: 0 | U72: 0 | V72: 0 | W72: 0 | X72: 0 | Y72: 0 | Z72: 0 | AA72: 0 | AB72: 0 | AC72: 0 | AD72: 0 | AE72: 0
S73: 69 | T73: 0 | U73: 0 | V73: 0 | W73: 0 | X73: 0 | Y73: 0 | Z73: 0 | AA73: 0 | AB73: 0 | AC73: 0 | AD73: 0 | AE73: 0
S74: 70 | T74: 0 | U74: 0 | V74: 0 | W74: 0 | X74: 0 | Y74: 0 | Z74: 0 | AA74: 0 | AB74: 0 | AC74: 0 | AD74: 0 | AE74: 0
S75: 71 | T75: 0 | U75: 0 | V75: 0 | W75: 0 | X75: 0 | Y75: 0 | Z75: 0 | AA75: 0 | AB75: 0 | AC75: 0 | AD75: 0 | AE75: 0
S76: 72 | T76: 0 | U76: 0 | V76: 0 | W76: 0 | X76: 0 | Y76: 0 | Z76: 0 | AA76: 0 | AB76: 0 | AC76: 0 | AD76: 0 | AE76: 0
S77: 73 | T77: 0 | U77: 0 | V77: 0 | W77: 0 | X77: 0 | Y77: 0 | Z77: 0 | AA77: 0 | AB77: 0 | AC77: 0 | AD77: 0 | AE77: 0
S78: 74 | T78: 0 | U78: 0 | V78: 0 | W78: 0 | X78: 0 | Y78: 0 | Z78: 0 | AA78: 0 | AB78: 0 | AC78: 0 | AD78: 0 | AE78: 0
S79: 75 | T79: 0 | U79: 0 | V79: 0 | W79: 0 | X79: 0 | Y79: 0 | Z79: 0 | AA79: 0 | AB79: 0 | AC79: 0 | AD79: 0 | AE79: 0
S80: 76 | T80: 0 | U80: 0 | V80: 0 | W80: 0 | X80: 0 | Y80: 0 | Z80: 0 | AA80: 0 | AB80: 0 | AC80: 0 | AD80: 0 | AE80: 0
S81: 77 | T81: 0 | U81: 0 | V81: 0 | W81: 0 | X81: 0 | Y81: 0 | Z81: 0 | AA81: 0 | AB81: 0 | AC81: 0 | AD81: 0 | AE81: 0
S82: 78 | T82: 0 | U82: 0 | V82: 0 | W82: 0 | X82: 0 | Y82: 0 | Z82: 0 | AA82: 0 | AB82: 0 | AC82: 0 | AD82: 0 | AE82: 0
S83: 79 | T83: 0 | U83: 0 | V83: 0 | W83: 0 | X83: 0 | Y83: 0 | Z83: 0 | AA83: 0 | AB83: 0 | AC83: 0 | AD83: 0 | AE83: 0
S84: 80 | T84: 0 | U84: 0 | V84: 0 | W84: 0 | X84: 0 | Y84: 0 | Z84: 0 | AA84: 0 | AB84: 0 | AC84: 0 | AD84: 0 | AE84: 0
S85: 81 | T85: 0 | U85: 0 | V85: 0 | W85: 0 | X85: 0 | Y85: 0 | Z85: 0 | AA85: 0 | AB85: 0 | AC85: 0 | AD85: 0 | AE85: 0
S86: 82 | T86: 0 | U86: 0 | V86: 0 | W86: 0 | X86: 0 | Y86: 0 | Z86: 0 | AA86: 0 | AB86: 0 | AC86: 0 | AD86: 0 | AE86: 0
S87: 83 | T87: 0 | U87: 0 | V87: 0 | W87: 0 | X87: 0 | Y87: 0 | Z87: 0 | AA87: 0 | AB87: 0 | AC87: 0 | AD87: 0 | AE87: 0
S88: 84 | T88: 0 | U88: 0 | V88: 0 | W88: 0 | X88: 0 | Y88: 0 | Z88: 0 | AA88: 0 | AB88: 0 | AC88: 0 | AD88: 0 | AE88: 0
S89: 85 | T89: 0 | U89: 0 | V89: 0 | W89: 0 | X89: 0 | Y89: 0 | Z89: 0 | AA89: 0 | AB89: 0 | AC89: 0 | AD89: 0 | AE89: 0
S90: 86 | T90: 0 | U90: 0 | V90: 0 | W90: 0 | X90: 0 | Y90: 0 | Z90: 0 | AA90: 0 | AB90: 0 | AC90: 0 | AD90: 0 | AE90: 0
S91: 87 | T91: 0 | U91: 0 | V91: 0 | W91: 0 | X91: 0 | Y91: 0 | Z91: 0 | AA91: 0 | AB91: 0 | AC91: 0 | AD91: 0 | AE91: 0
S92: 88 | T92: 0 | U92: 0 | V92: 0 | W92: 0 | X92: 0 | Y92: 0 | Z92: 0 | AA92: 0 | AB92: 0 | AC92: 0 | AD92: 0 | AE92: 0
S93: 89 | T93: 0 | U93: 0 | V93: 0 | W93: 0 | X93: 0 | Y93: 0 | Z93: 0 | AA93: 0 | AB93: 0 | AC93: 0 | AD93: 0 | AE93: 0
S94: 90 | T94: 0 | U94: 0 | V94: 0 | W94: 0 | X94: 0 | Y94: 0 | Z94: 0 | AA94: 0 | AB94: 0 | AC94: 0 | AD94: 0 | AE94: 0
S95: 91 | T95: 0 | U95: 0 | V95: 0 | W95: 0 | X95: 0 | Y95: 0 | Z95: 0 | AA95: 0 | AB95: 0 | AC95: 0 | AD95: 0 | AE95: 0
S96: 92 | T96: 0 | U96: 0 | V96: 0 | W96: 0 | X96: 0 | Y96: 0 | Z96: 0 | AA96: 0 | AB96: 0 | AC96: 0 | AD96: 0 | AE96: 0
S97: 93 | T97: 0 | U97: 0 | V97: 0 | W97: 0 | X97: 0 | Y97: 0 | Z97: 0 | AA97: 0 | AB97: 0 | AC97: 0 | AD97: 0 | AE97: 0
S98: 94 | T98: 0 | U98: 0 | V98: 0 | W98: 0 | X98: 0 | Y98: 0 | Z98: 0 | AA98: 0 | AB98: 0 | AC98: 0 | AD98: 0 | AE98: 0
S99: 95 | T99: 0 | U99: 0 | V99: 0 | W99: 0 | X99: 0 | Y99: 0 | Z99: 0 | AA99: 0 | AB99: 0 | AC99: 0 | AD99: 0 | AE99: 0
S100: 96 | T100: 0 | U100: 0 | V100: 0 | W100: 0 | X100: 0 | Y100: 0 | Z100: 0 | AA100: 0 | AB100: 0 | AC100: 0 | AD100: 0 | AE100: 0
S101: 97 | T101: 0 | U101: 0 | V101: 0 | W101: 0 | X101: 0 | Y101: 0 | Z101: 0 | AA101: 0 | AB101: 0 | AC101: 0 | AD101: 0 | AE101: 0
S102: 98 | T102: 0 | U102: 0 | V102: 0 | W102: 0 | X102: 0 | Y102: 0 | Z102: 0 | AA102: 0 | AB102: 0 | AC102: 0 | AD102: 0 | AE102: 0
S103: 99 | T103: 0 | U103: 0 | V103: 0 | W103: 0 | X103: 0 | Y103: 0 | Z103: 0 | AA103: 0 | AB103: 0 | AC103: 0 | AD103: 0 | AE103: 0
S104: 100 | T104: 0 | U104: 0 | V104: 0 | W104: 0 | X104: 0 | Y104: 0 | Z104: 0 | AA104: 0 | AB104: 0 | AC104: 0 | AD104: 0 | AE104: 0

Sheet Ergebnis
F1: 2025-01-04
B3: Ergebnisliste U12 Sportunion - Landesmeisterschaft
B5: Rang | C5: Team | D5: Final- spiel | E5: Pen. | F5: Gruppe | G5: Rang Gr.
B6: 1 | C6: ='Play-off'!AE29 -> UFC Rohrbach-Berg | D6: =IF(ISERROR(VLOOKUP(C6,'Play-off'!S:U,2,FALSE)),VLOOKUP(C6,'Play-off'!S:U,3,FALSE),VLOOKUP(C6,'Play-off'!S:U,2,FALSE)) -> 3 | E6: =IF(IF(ISERROR(VLOOKUP(C6,'Play-off'!$S:$U,3,FALSE)),VLOOKUP(C6,'Play-off'!$S:$U,2,FALSE),VLOOKUP(C6,'Play-off'!$S:$U,3,FALSE))="","",IF(ISERROR(VLOOKUP(C6,'Play-off'!$S:$U,3,FALSE)),VLOOKUP(C6,'Play-off'!$S:$U,2,FALSE),VLOOKUP(C6,'Play-off'!$S:$U,3,FALSE))) ->  | F6: =IF(C6="","",IF(ISERROR(VLOOKUP(C6,Einteilung!B:E,4,FALSE)),VLOOKUP(C6,Einteilung!F:I,4,FALSE),VLOOKUP(C6,Einteilung!B:E,4,FALSE))) -> I | G6: =IF(C6="","",VLOOKUP(C6,'Play-off'!C:K,7,FALSE)) -> 1
B7: 2 | C7: ='Play-off'!AE28 -> U. St. Peter/Wimberg | D7: =IF(ISERROR(VLOOKUP(C7,'Play-off'!S:U,2,FALSE)),VLOOKUP(C7,'Play-off'!S:U,3,FALSE),VLOOKUP(C7,'Play-off'!S:U,2,FALSE)) -> 1 | E7: =IF(IF(ISERROR(VLOOKUP(C7,'Play-off'!$S:$U,3,FALSE)),VLOOKUP(C7,'Play-off'!$S:$U,2,FALSE),VLOOKUP(C7,'Play-off'!$S:$U,3,FALSE))="","",IF(ISERROR(VLOOKUP(C7,'Play-off'!$S:$U,3,FALSE)),VLOOKUP(C7,'Play-off'!$S:$U,2,FALSE),VLOOKUP(C7,'Play-off'!$S:$U,3,FALSE))) ->  | F7: =IF(C7="","",IF(ISERROR(VLOOKUP(C7,Einteilung!B:E,4,FALSE)),VLOOKUP(C7,Einteilung!F:I,4,FALSE),VLOOKUP(C7,Einteilung!B:E,4,FALSE))) -> II | G7: =IF(C7="","",VLOOKUP(C7,'Play-off'!C:K,7,FALSE)) -> 1
B8: 3 | C8: ='Play-off'!AE25 -> U. Gampern | D8: =IF(ISERROR(VLOOKUP(C8,'Play-off'!S:U,2,FALSE)),VLOOKUP(C8,'Play-off'!S:U,3,FALSE),VLOOKUP(C8,'Play-off'!S:U,2,FALSE)) -> 1 | E8: =IF(IF(ISERROR(VLOOKUP(C8,'Play-off'!$S:$U,3,FALSE)),VLOOKUP(C8,'Play-off'!$S:$U,2,FALSE),VLOOKUP(C8,'Play-off'!$S:$U,3,FALSE))="","",IF(ISERROR(VLOOKUP(C8,'Play-off'!$S:$U,3,FALSE)),VLOOKUP(C8,'Play-off'!$S:$U,2,FALSE),VLOOKUP(C8,'Play-off'!$S:$U,3,FALSE))) -> 3 | F8: =IF(C8="","",IF(ISERROR(VLOOKUP(C8,Einteilung!B:E,4,FALSE)),VLOOKUP(C8,Einteilung!F:I,4,FALSE),VLOOKUP(C8,Einteilung!B:E,4,FALSE))) -> II | G8: =IF(C8="","",VLOOKUP(C8,'Play-off'!C:K,7,FALSE)) -> 2
B9: 4 | C9: ='Play-off'!AE24 -> SPG Julbach/Ulrichsb./Klaffer | D9: =IF(ISERROR(VLOOKUP(C9,'Play-off'!S:U,2,FALSE)),VLOOKUP(C9,'Play-off'!S:U,3,FALSE),VLOOKUP(C9,'Play-off'!S:U,2,FALSE)) -> 1 | E9: =IF(IF(ISERROR(VLOOKUP(C9,'Play-off'!$S:$U,3,FALSE)),VLOOKUP(C9,'Play-off'!$S:$U,2,FALSE),VLOOKUP(C9,'Play-off'!$S:$U,3,FALSE))="","",IF(ISERROR(VLOOKUP(C9,'Play-off'!$S:$U,3,FALSE)),VLOOKUP(C9,'Play-off'!$S:$U,2,FALSE),VLOOKUP(C9,'Play-off'!$S:$U,3,FALSE))) -> 1 | F9: =IF(C9="","",IF(ISERROR(VLOOKUP(C9,Einteilung!B:E,4,FALSE)),VLOOKUP(C9,Einteilung!F:I,4,FALSE),VLOOKUP(C9,Einteilung!B:E,4,FALSE))) -> III | G9: =IF(C9="","",VLOOKUP(C9,'Play-off'!C:K,7,FALSE)) -> 1
B10: 5 | C10: ='Play-off'!AE20 -> U. Walding/Rottenegg | D10: =IF(ISERROR(VLOOKUP(C10,'Play-off'!S:U,2,FALSE)),VLOOKUP(C10,'Play-off'!S:U,3,FALSE),VLOOKUP(C10,'Play-off'!S:U,2,FALSE)) -> 4 | E10: =IF(IF(ISERROR(VLOOKUP(C10,'Play-off'!$S:$U,3,FALSE)),VLOOKUP(C10,'Play-off'!$S:$U,2,FALSE),VLOOKUP(C10,'Play-off'!$S:$U,3,FALSE))="","",IF(ISERROR(VLOOKUP(C10,'Play-off'!$S:$U,3,FALSE)),VLOOKUP(C10,'Play-off'!$S:$U,2,FALSE),VLOOKUP(C10,'Play-off'!$S:$U,3,FALSE))) ->  | F10: =IF(C10="","",IF(ISERROR(VLOOKUP(C10,Einteilung!B:E,4,FALSE)),VLOOKUP(C10,Einteilung!F:I,4,FALSE),VLOOKUP(C10,Einteilung!B:E,4,FALSE))) -> I | G10: =IF(C10="","",VLOOKUP(C10,'Play-off'!C:K,7,FALSE)) -> 2
B11: 6 | C11: ='Play-off'!AE19 -> U. St. Martin/Mkr. | D11: =IF(ISERROR(VLOOKUP(C11,'Play-off'!S:U,2,FALSE)),VLOOKUP(C11,'Play-off'!S:U,3,FALSE),VLOOKUP(C11,'Play-off'!S:U,2,FALSE)) -> 1 | E11: =IF(IF(ISERROR(VLOOKUP(C11,'Play-off'!$S:$U,3,FALSE)),VLOOKUP(C11,'Play-off'!$S:$U,2,FALSE),VLOOKUP(C11,'Play-off'!$S:$U,3,FALSE))="","",IF(ISERROR(VLOOKUP(C11,'Play-off'!$S:$U,3,FALSE)),VLOOKUP(C11,'Play-off'!$S:$U,2,FALSE),VLOOKUP(C11,'Play-off'!$S:$U,3,FALSE))) ->  | F11: =IF(C11="","",IF(ISERROR(VLOOKUP(C11,Einteilung!B:E,4,FALSE)),VLOOKUP(C11,Einteilung!F:I,4,FALSE),VLOOKUP(C11,Einteilung!B:E,4,FALSE))) -> III | G11: =IF(C11="","",VLOOKUP(C11,'Play-off'!C:K,7,FALSE)) -> 3
B12: 7 | C12: ='Play-off'!AE16 -> UFC Aigen/Schlägl | D12: =IF(ISERROR(VLOOKUP(C12,'Play-off'!S:U,2,FALSE)),VLOOKUP(C12,'Play-off'!S:U,3,FALSE),VLOOKUP(C12,'Play-off'!S:U,2,FALSE)) -> 1 | E12: =IF(IF(ISERROR(VLOOKUP(C12,'Play-off'!$S:$U,3,FALSE)),VLOOKUP(C12,'Play-off'!$S:$U,2,FALSE),VLOOKUP(C12,'Play-off'!$S:$U,3,FALSE))="","",IF(ISERROR(VLOOKUP(C12,'Play-off'!$S:$U,3,FALSE)),VLOOKUP(C12,'Play-off'!$S:$U,2,FALSE),VLOOKUP(C12,'Play-off'!$S:$U,3,FALSE))) -> 3 | F12: =IF(C12="","",IF(ISERROR(VLOOKUP(C12,Einteilung!B:E,4,FALSE)),VLOOKUP(C12,Einteilung!F:I,4,FALSE),VLOOKUP(C12,Einteilung!B:E,4,FALSE))) -> II | G12: =IF(C12="","",VLOOKUP(C12,'Play-off'!C:K,7,FALSE)) -> 3
B13: 8 | C13: ='Play-off'!AE15 -> U. Ried/Riedmark | D13: =IF(ISERROR(VLOOKUP(C13,'Play-off'!S:U,2,FALSE)),VLOOKUP(C13,'Play-off'!S:U,3,FALSE),VLOOKUP(C13,'Play-off'!S:U,2,FALSE)) -> 1 | E13: =IF(IF(ISERROR(VLOOKUP(C13,'Play-off'!$S:$U,3,FALSE)),VLOOKUP(C13,'Play-off'!$S:$U,2,FALSE),VLOOKUP(C13,'Play-off'!$S:$U,3,FALSE))="","",IF(ISERROR(VLOOKUP(C13,'Play-off'!$S:$U,3,FALSE)),VLOOKUP(C13,'Play-off'!$S:$U,2,FALSE),VLOOKUP(C13,'Play-off'!$S:$U,3,FALSE))) -> 2 | F13: =IF(C13="","",IF(ISERROR(VLOOKUP(C13,Einteilung!B:E,4,FALSE)),VLOOKUP(C13,Einteilung!F:I,4,FALSE),VLOOKUP(C13,Einteilung!B:E,4,FALSE))) -> III | G13: =IF(C13="","",VLOOKUP(C13,'Play-off'!C:K,7,FALSE)) -> 2
B14: 9 | C14: ='Play-off'!AE11 -> U. Pichling | D14: =IF(ISERROR(VLOOKUP(C14,'Play-off'!S:U,2,FALSE)),VLOOKUP(C14,'Play-off'!S:U,3,FALSE),VLOOKUP(C14,'Play-off'!S:U,2,FALSE)) -> 1 | E14: =IF(IF(ISERROR(VLOOKUP(C14,'Play-off'!$S:$U,3,FALSE)),VLOOKUP(C14,'Play-off'!$S:$U,2,FALSE),VLOOKUP(C14,'Play-off'!$S:$U,3,FALSE))="","",IF(ISERROR(VLOOKUP(C14,'Play-off'!$S:$U,3,FALSE)),VLOOKUP(C14,'Play-off'!$S:$U,2,FALSE),VLOOKUP(C14,'Play-off'!$S:$U,3,FALSE))) ->  | F14: =IF(C14="","",IF(ISERROR(VLOOKUP(C14,Einteilung!B:E,4,FALSE)),VLOOKUP(C14,Einteilung!F:I,4,FALSE),VLOOKUP(C14,Einteilung!B:E,4,FALSE))) -> I | G14: =IF(C14="","",VLOOKUP(C14,'Play-off'!C:K,7,FALSE)) -> 3
B15: 10 | C15: ='Play-off'!AE10 -> U. Altenfelden | D15: =IF(ISERROR(VLOOKUP(C15,'Play-off'!S:U,2,FALSE)),VLOOKUP(C15,'Play-off'!S:U,3,FALSE),VLOOKUP(C15,'Play-off'!S:U,2,FALSE)) -> 0 | E15: =IF(IF(ISERROR(VLOOKUP(C15,'Play-off'!$S:$U,3,FALSE)),VLOOKUP(C15,'Play-off'!$S:$U,2,FALSE),VLOOKUP(C15,'Play-off'!$S:$U,3,FALSE))="","",IF(ISERROR(VLOOKUP(C15,'Play-off'!$S:$U,3,FALSE)),VLOOKUP(C15,'Play-off'!$S:$U,2,FALSE),VLOOKUP(C15,'Play-off'!$S:$U,3,FALSE))) ->  | F15: =IF(C15="","",IF(ISERROR(VLOOKUP(C15,Einteilung!B:E,4,FALSE)),VLOOKUP(C15,Einteilung!F:I,4,FALSE),VLOOKUP(C15,Einteilung!B:E,4,FALSE))) -> I | G15: =IF(C15="","",VLOOKUP(C15,'Play-off'!C:K,7,FALSE)) -> 4
B16: 11 | C16: ='Play-off'!AE7 -> U. Lembach | D16: =IF(ISERROR(VLOOKUP(C16,'Play-off'!S:U,2,FALSE)),VLOOKUP(C16,'Play-off'!S:U,3,FALSE),VLOOKUP(C16,'Play-off'!S:U,2,FALSE)) -> 2 | E16: =IF(IF(ISERROR(VLOOKUP(C16,'Play-off'!$S:$U,3,FALSE)),VLOOKUP(C16,'Play-off'!$S:$U,2,FALSE),VLOOKUP(C16,'Play-off'!$S:$U,3,FALSE))="","",IF(ISERROR(VLOOKUP(C16,'Play-off'!$S:$U,3,FALSE)),VLOOKUP(C16,'Play-off'!$S:$U,2,FALSE),VLOOKUP(C16,'Play-off'!$S:$U,3,FALSE))) ->  | F16: =IF(C16="","",IF(ISERROR(VLOOKUP(C16,Einteilung!B:E,4,FALSE)),VLOOKUP(C16,Einteilung!F:I,4,FALSE),VLOOKUP(C16,Einteilung!B:E,4,FALSE))) -> II | G16: =IF(C16="","",VLOOKUP(C16,'Play-off'!C:K,7,FALSE)) -> 4
B17: 12 | C17: ='Play-off'!AE6 -> SPG Putzleinsdorf/Hofkirchen | D17: =IF(ISERROR(VLOOKUP(C17,'Play-off'!S:U,2,FALSE)),VLOOKUP(C17,'Play-off'!S:U,3,FALSE),VLOOKUP(C17,'Play-off'!S:U,2,FALSE)) -> 0 | E17: =IF(IF(ISERROR(VLOOKUP(C17,'Play-off'!$S:$U,3,FALSE)),VLOOKUP(C17,'Play-off'!$S:$U,2,FALSE),VLOOKUP(C17,'Play-off'!$S:$U,3,FALSE))="","",IF(ISERROR(VLOOKUP(C17,'Play-off'!$S:$U,3,FALSE)),VLOOKUP(C17,'Play-off'!$S:$U,2,FALSE),VLOOKUP(C17,'Play-off'!$S:$U,3,FALSE))) ->  | F17: =IF(C17="","",IF(ISERROR(VLOOKUP(C17,Einteilung!B:E,4,FALSE)),VLOOKUP(C17,Einteilung!F:I,4,FALSE),VLOOKUP(C17,Einteilung!B:E,4,FALSE))) -> III | G17: =IF(C17="","",VLOOKUP(C17,'Play-off'!C:K,7,FALSE)) -> 4

Sheet Statistische Daten
B2: Spiele
B3: =SUM('Play-off'!D:D)/2+COUNT('Play-off'!M:M)/2+COUNT('Play-off'!T:T)/2 -> 30
B5: Erzielte Tore
B6: Vorrunde | C6: =SUM('Play-off'!E:E) -> 58
B7: Playoff | C7: =SUM('Play-off'!M:M)+SUM('Play-off'!T:T) -> 42
B8: Gesamt | C8: =SUM(C6:C7) -> 100
